Workbook

Sheet Início
A2: CÁLCULO SIMPLIFICADO DO CUSTO DE PRODUÇÃO DO INTEGRADO
F36: Versão 2.0 - Janeiro/2018

Sheet Produção de leitões desmamados
A1: CÁLCULO SIMPLIFICADO DO CUSTO DE PRODUÇÃO DE LEITÕES DESMAMADOS COM CONTRATO DE COMODATO | O1: Ano | P1: Instalações | Q1: Equipametos | R1: Terreno e valor residual | S1: Margem bruta (MB) | T1: Entradas Líquidas de Caixa ( | U1: =IRR(T2:T101,)*100 -> 8.517273104 | AA1: CHAVE | AB1: VERIFICADOR | AC1: A1 | AD1: A2 | AE1: A3 | AF1: A4 | AG1: A5 | AH1: A6 | AI1: A7 | AJ1: A8 | AK1: A9 | AL1: A10 | AM1: A11 | AN1: A12 | AO1: A13 | AP1: A14 | AQ1: A15 | AR1: A16 | AS1: A17 | AT1: A18 | AU1: A19 | AV1: B1 | AW1: B2 | AX1: B3 | AY1: B4 | AZ1: B5 | BA1: B6 | BB1: B7 | BC1: C1 | BD1: C2 | BE1: C3 | BF1: C4 | BG1: C5 | BH1: C6 | BI1: C7 | BJ1: C8 | BK1: C9 | BL1: C10 | BM1: C11 | BN1: C12 | BO1: C13 | BP1: C14 | BQ1: C15 | BR1: D1 | BS1: D2 | BT1: D3 | BU1: D4 | BV1: D5 | BW1: D6 | BX1: D7 | BY1: D8 | BZ1: D9 | CA1: D10 | CB1: D11
O2: 0 | P2: =-$B$14 -> -759356 | Q2: =-$B$13 -> -324906 | R2: =-$B$15 -> -10000 | S2: 0 | T2: =IF($O2>MAX($C$13:$C$14),0,SUM(P2:S2)) -> -1094262 | AA2: =AC2&AD2&AF2&AG2 -> Exemplo 1leitões desmamadosSeara,SC42644 | AC2: =E4 -> Exemplo 1 | AD2: =E6 -> leitões desmamados | AF2: =E8 -> Seara,SC | AG2: =E10 -> 42644 | AH2: =B4 -> 323 | AJ2: =B5 -> 31.6 | AK2: =B6 -> 7.7 | AL2: =B7 -> 3 semanas | AQ2: =B8 -> 17.38095238 | AS2: =B9 -> 1153 | AT2: =B10 -> 6 | AV2: =B13 -> 324906 | AW2: =B14 -> 759356 | AX2: =B15 -> 10000 | AY2: =C13 -> 12 | AZ2: =C14 -> 25 | BA2: =E13 -> 0.058 | BB2: =G21 -> 81700 | BC2: =I22 -> 87108 | BD2: =I23 -> 0 | BE2: =I24 -> 0 | BF2: =I25 -> 9168 | BH2: =I26 -> 10750 | BI2: =I27 -> 195 | BJ2: =I28 -> 2000 | BK2: =I29 -> 3000 | BL2: =I30 -> 1260 | BM2: =I31 -> 2400 | BN2: =I32 -> 2400 | BO2: =I33 -> 51704.766 | BP2: =I35 -> 235777.08 | BQ2: =I36 -> 0 | BR2: =B39 -> 3 | BS2: =B40 -> 1.505 | BT2: =B41 -> 0.6579 | BU2: =B42 -> 2.1629 | BV2: =B43 -> 0.5811 | BW2: =B44 -> 2.744 | BX2: =B47 -> 1.495 | BY2: =B48 -> 0.8371 | BZ2: =B49 -> 0.256 | CA2: =B50 -> 1.5638 | CB2: =U1 -> 8.517273104
A3: Alojamento e desempenho | B3: Índices técnicos | D3: Caracterização | G3: Programação dos lotes | O3: 1 | P3: =IF($O3/$C$14=INT($O3/$C$14),-$B$14,0)*IF(MAX($C$13:$C$14)-$O3<$C$14,0,1) -> 0 | Q3: =IF($O3/$C$13=INT($O3/$C$13),-$B$13,0)*IF(MAX($C$13:$C$14)-$O3<$C$13,0,1) -> 0 | R3: =IF($O3=MAX($C$13:$C$14),$B$15+$F$13*$B$13+$F$14*$B$14,0) -> 0 | S3: =$E$39-$E$40 -> 117496.08 | T3: 117496.08
A4: Média de matrizes ativas (cabeças) | B4: 323 | D4: Identificação da granja: | E4: Exemplo 1 | G4: Programação de partos | H4: N. de dias | I4: N. de lotes/ano | O4: 2 | P4: 0 | Q4: 0 | R4: =IF($O4=MAX($C$13:$C$14),$B$15+$F$13*$B$13+$F$14*$B$14,0) -> 0 | S4: 117496.08 | T4: =IF($O4>MAX($C$13:$C$14),0,SUM(P4:S4)) -> 117496.08
A5: Vendidos/matriz/ano | B5: 31.6 | G5: semanal | H5: 7 | I5: =365/H5 -> 52.14285714 | O5: 3 | P5: 0 | Q5: 0 | R5: 0 | S5: 117496.08 | T5: 117496.08
A6: Peso médio de venda (kg vivo/cabeça) | B6: 7.7 | D6: Sistema de criação: | E6: leitões desmamados | G6: 2 semanas | H6: =$H$5*2 -> 14 | I6: =365/H6 -> 26.07142857 | O6: 4 | P6: 0 | Q6: 0 | R6: 0 | S6: 117496.08 | T6: 117496.08
A7: Programação dos lotes | B7: 3 semanas | G7: 3 semanas | H7: =$H$5*3 -> 21 | I7: =365/H7 -> 17.38095238 | O7: 5 | P7: 0 | Q7: 0 | R7: 0 | S7: 117496.08 | T7: 117496.08
A8: Número de lotes por ano | B8: =VLOOKUP(B7,G5:I8,3,) -> 17.38095238 | D8: Município e UF: | E8: Seara,SC | G8: 4 semanas | H8: =$H$5*4 -> 28 | I8: =365/H8 -> 13.03571429 | O8: 6 | P8: 0 | Q8: 0 | R8: 0 | S8: 117496.08 | T8: 117496.08
A9: Consumo dos reprodutores (kg/matriz/ano) | B9: 1153 | O9: 7 | P9: 0 | Q9: 0 | R9: 0 | S9: 117496.08 | T9: 117496.08
A10: Mortalidade de matrizes (%) | B10: 6 | D10: Data entrega do lote: | E10: 2016-10-01 | O10: 8 | P10: 0 | Q10: 0 | R10: 0 | S10: 117496.08 | T10: 117496.08
O11: 9 | P11: 0 | Q11: 0 | R11: 0 | S11: 117496.08 | T11: 117496.08
A12: Investimento realizado | B12: Valor novo ou atualizado (R$) | C12: Vida útil (anos) | E12: Juros sobre capital | F12: Valor residual (%) | G12: Depreciação (R$/ano) | H12: Custo de capital (R$/ano) | O12: 10 | P12: 0 | Q12: 0 | R12: 0 | S12: 117496.08 | T12: 117496.08
A13: Equipamentos | B13: 324906 | C13: 12 | E13: 0.058 | F13: 0.1 | G13: =IF(C13<=0,"",(B13*(1-F13))/C13) -> 24367.95 | H13: =-PMT($E$13,C13,B13,,0)-G13 -> 13962.07942 | O13: 11 | P13: 0 | Q13: 0 | R13: 0 | S13: 117496.08 | T13: 117496.08
A14: Instalações | B14: 759356 | C14: 25 | F14: 0.1 | G14: =IF(C14<=0,"",(B14*(1-F14))/C14) -> 27336.816 | H14: =-PMT($E$13,C14,B14,,0)-G14 -> 30940.9557 | O14: 12 | P14: 0 | Q14: -324906 | R14: 0 | S14: 117496.08 | T14: -207409.92
A15: Terreno ocupado pelas instalações | B15: 10000 | F15: 1 | G15: =IF(C14<=0,"",(B15*(1-F15))/C14) -> 0 | H15: =-PMT($E$13,C14,B15,,0)-G15 -> 767.4631095 | O15: 13 | P15: 0 | Q15: 0 | R15: 0 | S15: 117496.08 | T15: 117496.08
A16: Total | B16: =SUM(B13:B15) -> 1094262 | G16: =SUM(G13:G15) -> 51704.766 | H16: =SUM(H13:H15) -> 45670.49823 | O16: 14 | P16: 0 | Q16: 0 | R16: 0 | S16: 117496.08 | T16: 117496.08
G17: Financiamento | O17: 15 | P17: 0 | Q17: 0 | R17: 0 | S17: 117496.08 | T17: 117496.08
A18: Financiamento | B18: Unidade | C18: Valores | F18: Anual | G18: 1 | O18: 16 | P18: 0 | Q18: 0 | R18: 0 | S18: 117496.08 | T18: 117496.08
A19: Valor da prestação do financiamento | B19: Anual | C19: 81700 | F19: Trimestral | G19: 4 | O19: 17 | P19: 0 | Q19: 0 | R19: 0 | S19: 117496.08 | T19: 117496.08
F20: Semestral | G20: 2 | O20: 18 | P20: 0 | Q20: 0 | R20: 0 | S20: 117496.08 | T20: 117496.08
A21: Itens de despesa | B21: Unidade | C21: Valores | G21: =+VLOOKUP(B19,F18:G20,2,FALSE)*C19 -> 81700 | H21: Itens de despesas | I21: R$/ano | O21: 19 | P21: 0 | Q21: 0 | R21: 0 | S21: 117496.08 | T21: 117496.08
A22: Mão de obra familiar | B22: R$/mês | C22: 7259 | F22: Unidades | H22: Mão de obra familiar | I22: =+C22*VLOOKUP(B22,$F$23:$G$27,2,FALSE) -> 87108 | J22: Mão de obra familiar | K22: =I22 -> 87108 | O22: 20 | P22: 0 | Q22: 0 | R22: 0 | S22: 117496.08 | T22: 117496.08
A23: Mão de obra contratada e encargos sociais | B23: R$/mês | C23: 0 | F23: R$/matriz/ano | G23: =+B4 -> 323 | H23: Mão de obra contratada | I23: 0 | J23: Mão de obra contratada | K23: =SUM(I23:I24) -> 0 | O23: 21 | P23: 0 | Q23: 0 | R23: 0 | S23: 117496.08 | T23: 117496.08
A24: Diaristas e prestadores de serviços | B24: R$/lote | C24: 0 | F24: R$/cab | G24: =B4*B5 -> 10206.8 | H24: Diaristas e serviços | I24: 0 | J24: Outros custos variáveis | K24: =+SUM(I25:I32) -> 31173 | O24: 22 | P24: 0 | Q24: 0 | R24: 0 | S24: 117496.08 | T24: 117496.08
A25: Energia e aquecimento | B25: R$/mês | C25: 764 | F25: R$/lote | G25: =+B8 -> 17.38095238 | H25: Energia e aquecimento | I25: 9168 | J25: Depreciação | K25: =+I33 -> 51704.766 | O25: 23 | P25: 0 | Q25: 0 | R25: 0 | S25: 117496.08 | T25: 117496.08
A26: Tratamento, transporte e aplicação de dejetos | B26: R$/ano | C26: 10750 | F26: R$/mês | G26: 12 | H26: Dejetos | I26: 10750 | J26: Custo de capital | K26: =E43 -> 45670.49823 | O26: 24 | P26: 0 | Q26: 0 | R26: 0 | S26: 117496.08 | T26: 117496.08
A27: Licença ambiental | B27: R$/ano | C27: 195 | F27: R$/ano | G27: 1 | H27: Licença ambiental | I27: 195 | O27: 25 | P27: 0 | Q27: 0 | R27: 118426.2 | S27: 117496.08 | T27: 235922.28
A28: Seguro | B28: R$/ano | C28: 2000 | H28: Seguro | I28: 2000 | O28: 26 | P28: 0 | Q28: 0 | R28: 0 | S28: 117496.08 | T28: 0
A29: Manutenção | B29: R$/mês | C29: 250 | H29: Manutenção | I29: 3000 | O29: 27 | P29: 0 | Q29: 0 | R29: 0 | S29: 117496.08 | T29: 0
A30: Insumos para limpeza, desinfecção, vacinas e medicamentos | B30: R$/mês | C30: 105 | H30: Desinfetantes e medicamentos | I30: 1260 | O30: 28 | P30: 0 | Q30: 0 | R30: 0 | S30: 117496.08 | T30: 0
A31: Despesas administrativas | B31: R$/mês | C31: 200 | H31: Despesas administrativas | I31: 2400 | O31: 29 | P31: 0 | Q31: 0 | R31: 0 | S31: 117496.08 | T31: 0
A32: Outros | B32: R$/mês | C32: 200 | H32: Outros | I32: 2400 | O32: 30 | P32: 0 | Q32: 0 | R32: 0 | S32: 117496.08 | T32: 0
H33: Depreciação | I33: =G16 -> 51704.766 | O33: 31 | P33: 0 | Q33: 0 | R33: 0 | S33: 117496.08 | T33: 0
A34: Itens de receita | B34: Unidade | C34: Valores | O34: 32 | P34: 0 | Q34: 0 | R34: 0 | S34: 117496.08 | T34: 0
A35: Receita com a venda dos leitões | B35: R$/cab | C35: 23.1 | H35: Receita com a venda dos leitões | I35: =+C35*VLOOKUP(B35,$F$23:$G$27,2,FALSE) -> 235777.08 | O35: 33 | P35: 0 | Q35: 0 | R35: 0 | S35: 117496.08 | T35: 0
A36: Receita com a venda de dejeto ou composto | B36: R$/ano | C36: 0 | H36: Receita com a venda de dejeto ou composto | I36: =+C36*VLOOKUP(B36,$F$23:$G$27,2,FALSE) -> 0 | O36: 34 | P36: 0 | Q36: 0 | R36: 0 | S36: 117496.08 | T36: 0
O37: 35 | P37: 0 | Q37: 0 | R37: 0 | S37: 117496.08 | T37: 0
A38: Receita bruta e custos | B38: R$/kg vivo | C38: R$/cabeça | D38: R$/lote | E38: R$/ano | O38: 36 | P38: 0 | Q38: 0 | R38: 0 | S38: 117496.08 | T38: 0
A39: A - Receita bruta | B39: =ROUND(C39/$B$6,4) -> 3 | C39: =ROUND(E39/($B$4*$B$5),4) -> 23.1 | D39: =E39/$B$8 -> 13565.25666 | E39: =SUM(I35:I36) -> 235777.08 | O39: 37 | P39: 0 | Q39: 0 | R39: 0 | S39: 117496.08 | T39: 0
A40: B - Custos variáveis | B40: =ROUND(C40/$B$6,4) -> 1.505 | C40: =ROUND(E40/($B$4*$B$5),4) -> 11.5885 | D40: =E40/$B$8 -> 6805.208219 | E40: =SUM(I22:I32) -> 118281 | O40: 38 | P40: 0 | Q40: 0 | R40: 0 | S40: 117496.08 | T40: 0
A41: C - Depreciação | B41: =ROUND(C41/$B$6,4) -> 0.6579 | C41: =ROUND(E41/($B$4*$B$5),4) -> 5.0657 | D41: =E41/$B$8 -> 2974.794756 | E41: =I33 -> 51704.766 | O41: 39 | P41: 0 | Q41: 0 | R41: 0 | S41: 117496.08 | T41: 0
A42: D - Custo operacional (B+C) | B42: =SUM(B40:B41) -> 2.1629 | C42: =SUM(C40:C41) -> 16.6542 | D42: =SUM(D40:D41) -> 9780.002975 | E42: =SUM(E40:E41) -> 169985.766 | O42: 40 | P42: 0 | Q42: 0 | R42: 0 | S42: 117496.08 | T42: 0
A43: ="E - Custo de capital ou retorno esperado de "&E13*100&"% ao ano" -> E - Custo de capital ou retorno esperado de 5,8% ao ano | B43: =ROUND(C43/$B$6,4) -> 0.5811 | C43: =ROUND(E43/($B$4*$B$5),4) -> 4.4745 | D43: =E43/$B$8 -> 2627.617706 | E43: =IF(E13<=0,0,H16) -> 45670.49823 | O43: 41 | P43: 0 | Q43: 0 | R43: 0 | S43: 117496.08 | T43: 0
A44: F - Custo total (B+C+E) | B44: =SUM(B42:B43) -> 2.744 | C44: =SUM(C42:C43) -> 21.1287 | D44: =SUM(D42:D43) -> 12407.62068 | E44: =SUM(E42:E43) -> 215656.2642 | O44: 42 | P44: 0 | Q44: 0 | R44: 0 | S44: 117496.08 | T44: 0
O45: 43 | P45: 0 | Q45: 0 | R45: 0 | S45: 117496.08 | T45: 0
A46: Resultados | B46: R$/kg vivo | C46: R$/cabeça | D46: R$/lote | E46: R$/ano | O46: 44 | P46: 0 | Q46: 0 | R46: 0 | S46: 117496.08 | T46: 0
A47: G - Margem bruta: (Receita bruta - Custo variável) | B47: =+B39-B40 -> 1.495 | C47: =+C39-C40 -> 11.5115 | D47: =+D39-D40 -> 6760.048438 | E47: =E39-E40 -> 117496.08 | O47: 45 | P47: 0 | Q47: 0 | R47: 0 | S47: 117496.08 | T47: 0
A48: H - Margem líquida: (Receita bruta - Custo operacional) | B48: =+B39-B42 -> 0.8371 | C48: =+C39-C42 -> 6.4458 | D48: 3785.253682 | E48: 65791.314 | O48: 46 | P48: 0 | Q48: 0 | R48: 0 | S48: 117496.08 | T48: 0
A49: I - Lucro líquido: (Receita bruta - Custo total) | B49: =+B39-B44 -> 0.256 | C49: =+C39-C44 -> 1.9713 | D49: =+D39-D44 -> 1157.635976 | E49: =E39-E44 -> 20120.81577 | O49: 47 | P49: 0 | Q49: 0 | R49: 0 | S49: 117496.08 | T49: 0
A50: J - Geração de caixa (Entradas de caixa - Saídas de Caixa) | B50: =ROUND(C50/$B$6,4) -> 1.5638 | C50: =ROUND(E50/($B$4*$B$5),4) -> 12.0414 | D50: =E50/$B$8 -> 7071.193644 | E50: =E39-(E40-I22+G21) -> 122904.08 | O50: 48 | P50: 0 | Q50: 0 | R50: 0 | S50: 117496.08 | T50: 0
G51: Matriz da Análise financeira | O51: 49 | P51: 0 | Q51: 0 | R51: 0 | S51: 117496.08 | T51: 0
A52: Composição do custo total | C52: Análise do resultado | G52: =IF(AND(E50<0,E39<E42),"Pior resultado possível! A receita bruta não cobre o custo operacional e a geração de caixa é negativa.","") ->  | H52: =IF(AND(E50>0,E39<E42),"Resultado ruim, mas honrando os compromissos financeiros. A receita bruta não cobre o custo operacional, mas a geração de caixa é positiva.","") ->  | O52: 50 | P52: 0 | Q52: 0 | R52: 0 | S52: 117496.08 | T52: 0
O53: 51 | P53: 0 | Q53: 0 | R53: 0 | S53: 117496.08 | T53: 0
C54: =G52&G56&G63&H52&H56&H63 -> Melhor resultado possível! A receita bruta atende a expectativa de retorno sobre o investimento de 5,8% ao ano e a geração de caixa é positiva. | O54: 52 | P54: 0 | Q54: 0 | R54: 0 | S54: 117496.08 | T54: 0
O55: 53 | P55: 0 | Q55: 0 | R55: 0 | S55: 117496.08 | T55: 0
G56: =IF(AND(E50<0,E39>=E42,E39<E44),"Resultado abaixo do esperado e com problemas para honrar os compromissos financeiros. A receita bruta cobre o custo operacional, mas não atende a expectativa de retorno sobre o investimento de "&$E$13*100&"% ao ano. Além disso, a geração de caixa é negativa.","") ->  | H56: =IF(AND(E50>=0,E39>=E42,E39<E44),"Resultado abaixo do esperado, mas honrando os compromissos financeiros. A receita bruta cobre o custo operacional, mas não atende a expectativa de retorno sobre o investimento de "&$E$13*100&"% ao ano. Entretanto, a geração de caixa é positiva.","") ->  | O56: 54 | P56: 0 | Q56: 0 | R56: 0 | S56: 117496.08 | T56: 0
O57: 55 | P57: 0 | Q57: 0 | R57: 0 | S57: 117496.08 | T57: 0
O58: 56 | P58: 0 | Q58: 0 | R58: 0 | S58: 117496.08 | T58: 0
O59: 57 | P59: 0 | Q59: 0 | R59: 0 | S59: 117496.08 | T59: 0
O60: 58 | P60: 0 | Q60: 0 | R60: 0 | S60: 117496.08 | T60: 0
O61: 59 | P61: 0 | Q61: 0 | R61: 0 | S61: 117496.08 | T61: 0
O62: 60 | P62: 0 | Q62: 0 | R62: 0 | S62: 117496.08 | T62: 0
G63: =IF(AND(E50<0,E39>=E44),"Resultado acima do esperado mas com problemas para honrar os compromissos financeiros. A receita bruta atende a expectativa de retorno sobre o investimento de "&$E$13*100&"% ao ano. Entretanto, a geração de caixa é negativa.","") ->  | H63: =IF(AND(E50>=0,E39>=E44),"Melhor resultado possível! A receita bruta atende a expectativa de retorno sobre o investimento de "&$E$13*100&"% ao ano e a geração de caixa é positiva.","") -> Melhor resultado possível! A receita bruta atende a expectativa de retorno sobre o investimento de 5,8% ao ano e a geração de caixa é positiva. | O63: 61 | P63: 0 | Q63: 0 | R63: 0 | S63: 117496.08 | T63: 0
O64: 62 | P64: 0 | Q64: 0 | R64: 0 | S64: 117496.08 | T64: 0
O65: 63 | P65: 0 | Q65: 0 | R65: 0 | S65: 117496.08 | T65: 0
O66: 64 | P66: 0 | Q66: 0 | R66: 0 | S66: 117496.08 | T66: 0
C67: =IF(T3<0,"","A Taxa Interna de Retorno (TIR) do investimento foi estimada em "&TRUNC(U1,1)&"% ao ano.") -> A Taxa Interna de Retorno (TIR) do investimento foi estimada em 8,5% ao ano. | O67: 65 | P67: =IF($O67/$C$14=INT($O67/$C$14),-$B$14,0)*IF(MAX($C$13:$C$14)-$O67<$C$14,0,1) -> 0 | Q67: =IF($O67/$C$13=INT($O67/$C$13),-$B$13,0)*IF(MAX($C$13:$C$14)-$O67<$C$13,0,1) -> 0 | R67: 0 | S67: =$E$39-$E$40 -> 117496.08 | T67: 0
O68: 66 | P68: 0 | Q68: 0 | R68: =IF($O68=MAX($C$13:$C$14),$B$15+$F$13*$B$13+$F$14*$B$14,0) -> 0 | S68: 117496.08 | T68: =IF($O68>MAX($C$13:$C$14),0,SUM(P68:S68)) -> 0
O69: 67 | P69: 0 | Q69: 0 | R69: 0 | S69: 117496.08 | T69: 0
O70: 68 | P70: 0 | Q70: 0 | R70: 0 | S70: 117496.08 | T70: 0
O71: 69 | P71: 0 | Q71: 0 | R71: 0 | S71: 117496.08 | T71: 0
O72: 70 | P72: 0 | Q72: 0 | R72: 0 | S72: 117496.08 | T72: 0
O73: 71 | P73: 0 | Q73: 0 | R73: 0 | S73: 117496.08 | T73: 0
O74: 72 | P74: 0 | Q74: 0 | R74: 0 | S74: 117496.08 | T74: 0
O75: 73 | P75: 0 | Q75: 0 | R75: 0 | S75: 117496.08 | T75: 0
O76: 74 | P76: 0 | Q76: 0 | R76: 0 | S76: 117496.08 | T76: 0
A77: Mão de obra familiar | B77: =+K22 -> 87108 | O77: 75 | P77: 0 | Q77: 0 | R77: 0 | S77: 117496.08 | T77: 0
A78: Mão de obra contratada | B78: =+K23 -> 0 | O78: 76 | P78: 0 | Q78: 0 | R78: 0 | S78: 117496.08 | T78: 0
A79: Outros custos variáveis | B79: 31173 | O79: 77 | P79: 0 | Q79: 0 | R79: 0 | S79: 117496.08 | T79: 0
A80: Depreciação | B80: 51704.766 | O80: 78 | P80: 0 | Q80: 0 | R80: 0 | S80: 117496.08 | T80: 0
A81: Custo de capital | B81: 45670.49823 | O81: 79 | P81: 0 | Q81: 0 | R81: 0 | S81: 117496.08 | T81: 0
O82: 80 | P82: 0 | Q82: 0 | R82: 0 | S82: 117496.08 | T82: 0
O83: 81 | P83: 0 | Q83: 0 | R83: 0 | S83: 117496.08 | T83: 0
O84: 82 | P84: 0 | Q84: 0 | R84: 0 | S84: 117496.08 | T84: 0
O85: 83 | P85: 0 | Q85: 0 | R85: 0 | S85: 117496.08 | T85: 0
O86: 84 | P86: 0 | Q86: 0 | R86: 0 | S86: 117496.08 | T86: 0
O87: 85 | P87: 0 | Q87: 0 | R87: 0 | S87: 117496.08 | T87: 0
O88: 86 | P88: 0 | Q88: 0 | R88: 0 | S88: 117496.08 | T88: 0
O89: 87 | P89: 0 | Q89: 0 | R89: 0 | S89: 117496.08 | T89: 0
O90: 88 | P90: 0 | Q90: 0 | R90: 0 | S90: 117496.08 | T90: 0
O91: 89 | P91: 0 | Q91: 0 | R91: 0 | S91: 117496.08 | T91: 0
O92: 90 | P92: 0 | Q92: 0 | R92: 0 | S92: 117496.08 | T92: 0
O93: 91 | P93: 0 | Q93: 0 | R93: 0 | S93: 117496.08 | T93: 0
O94: 92 | P94: 0 | Q94: 0 | R94: 0 | S94: 117496.08 | T94: 0
O95: 93 | P95: 0 | Q95: 0 | R95: 0 | S95: 117496.08 | T95: 0
O96: 94 | P96: 0 | Q96: 0 | R96: 0 | S96: 117496.08 | T96: 0
O97: 95 | P97: 0 | Q97: 0 | R97: 0 | S97: 117496.08 | T97: 0
O98: 96 | P98: 0 | Q98: 0 | R98: 0 | S98: 117496.08 | T98: 0
O99: 97 | P99: 0 | Q99: 0 | R99: 0 | S99: 117496.08 | T99: 0
O100: 98 | P100: 0 | Q100: 0 | R100: 0 | S100: 117496.08 | T100: 0
O101: 99 | P101: 0 | Q101: 0 | R101: 0 | S101: 117496.08 | T101: 0
P102: x | Q102: x | R102: x | S102: x | T102: x | U102: x

Sheet Produção de leitões descrechado
A1: CÁLCULO SIMPLIFICADO DO CUSTO DE PRODUÇÃO DE LEITÕES DESCRECHADOS COM CONTRATO DE COMODATO | O1: Ano | P1: Instalações | Q1: Equipametos | R1: Terreno e valor residual | S1: Margem bruta (MB) | T1: Entradas Líquidas de Caixa ( | U1: =IRR(T2:T101,)*100 -> 8.21637833 | AA1: CHAVE | AB1: VERIFICADOR | AC1: A1 | AD1: A2 | AE1: A3 | AF1: A4 | AG1: A5 | AH1: A6 | AI1: A7 | AJ1: A8 | AK1: A9 | AL1: A10 | AM1: A11 | AN1: A12 | AO1: A13 | AP1: A14 | AQ1: A15 | AR1: A16 | AS1: A17 | AT1: A18 | AU1: A19 | AV1: B1 | AW1: B2 | AX1: B3 | AY1: B4 | AZ1: B5 | BA1: B6 | BB1: B7 | BC1: C1 | BD1: C2 | BE1: C3 | BF1: C4 | BG1: C5 | BH1: C6 | BI1: C7 | BJ1: C8 | BK1: C9 | BL1: C10 | BM1: C11 | BN1: C12 | BO1: C13 | BP1: C14 | BQ1: C15 | BR1: D1 | BS1: D2 | BT1: D3 | BU1: D4 | BV1: D5 | BW1: D6 | BX1: D7 | BY1: D8 | BZ1: D9 | CA1: D10 | CB1: D11
O2: 0 | P2: =-$B$15 -> -807053 | Q2: =-$B$14 -> -345880 | R2: =-$B$16 -> -35000 | S2: 0 | T2: =IF($O2>MAX($C$14:$C$15),0,SUM(P2:S2)) -> -1187933 | AA2: =AC2&AD2&AF2&AG2 -> Exemplo 2leitões descrechadoConcórdia, SC41974 | AC2: =E4 -> Exemplo 2 | AD2: =E6 -> leitões descrechado | AF2: =E8 -> Concórdia, SC | AG2: =E10 -> 41974 | AH2: =B4 -> 497 | AJ2: =B5 -> 24.56 | AK2: =B6 -> 23.01 | AL2: =B7 -> semanal | AQ2: =B8 -> 52.14285714 | AR2: =B9 -> 1.5 | AS2: =B10 -> 1112 | AT2: =B11 -> 7.2 | AV2: =B14 -> 345880 | AW2: =B15 -> 807053 | AX2: =B16 -> 35000 | AY2: =C14 -> 12 | AZ2: =C15 -> 25 | BA2: =E14 -> 0.0795 | BB2: =G22 -> 130000 | BC2: =I23 -> 16540.21 | BD2: =I24 -> 91200 | BE2: =I25 -> 0 | BF2: =I26 -> 21516 | BH2: =I27 -> 15880 | BI2: =I28 -> 62.5 | BJ2: =I29 -> 850 | BK2: =I30 -> 10000 | BL2: =I31 -> 2869 | BM2: =I32 -> 5340 | BN2: =I33 -> 1003 | BO2: =I34 -> 54994.908 | BP2: =I36 -> 289411.8472 | BQ2: =I37 -> 0 | BR2: =B40 -> 1.0304 | BS2: =B41 -> 0.5884 | BT2: =B42 -> 0.1958 | BU2: =B43 -> 0.7842 | BV2: =B44 -> 0.2468 | BW2: =B45 -> 1.031 | BX2: =B48 -> 0.442 | BY2: =B49 -> 0.2462 | BZ2: =B50 -> -0.0006 | CA2: =B51 -> 0.0381 | CB2: =U1 -> 8.21637833
A3: Alojamento e desempenho | B3: Índices técnicos | D3: Caracterização | G3: Programação dos lotes | O3: 1 | P3: =IF($O3/$C$15=INT($O3/$C$15),-$B$15,0)*IF(MAX($C$14:$C$15)-$O3<$C$15,0,1) -> 0 | Q3: =IF($O3/$C$14=INT($O3/$C$14),-$B$14,0)*IF(MAX($C$14:$C$15)-$O3<$C$14,0,1) -> 0 | R3: =IF($O3=MAX($C$14:$C$15),$B$16+$F$14*$B$14+$F$15*$B$15,0) -> 0 | S3: =$E$40-$E$41 -> 124151.1372 | T3: =IF($O3>MAX($C$14:$C$15),0,SUM(P3:S3)) -> 124151.1372
A4: Média de matrizes ativas (cabeças) | B4: 497 | D4: Identificação da granja: | E4: Exemplo 2 | G4: Programação de partos | H4: N. de dias | I4: N. de lotes/ano | O4: 2 | P4: =IF($O4/$C$15=INT($O4/$C$15),-$B$15,0)*IF(MAX($C$14:$C$15)-$O4<$C$15,0,1) -> 0 | Q4: =IF($O4/$C$14=INT($O4/$C$14),-$B$14,0)*IF(MAX($C$14:$C$15)-$O4<$C$14,0,1) -> 0 | R4: =IF($O4=MAX($C$14:$C$15),$B$16+$F$14*$B$14+$F$15*$B$15,0) -> 0 | S4: =$E$40-$E$41 -> 124151.1372 | T4: =IF($O4>MAX($C$14:$C$15),0,SUM(P4:S4)) -> 124151.1372
A5: Vendidos/matriz/ano | B5: 24.56 | G5: semanal | H5: 7 | I5: =365/H5 -> 52.14285714 | O5: 3 | P5: 0 | Q5: 0 | R5: 0 | S5: 124151.1372 | T5: 124151.1372
A6: Peso médio de venda (kg vivo/cabeça) | B6: 23.01 | D6: Sistema de criação: | E6: leitões descrechado | G6: 2 semanas | H6: =$H$5*2 -> 14 | I6: =365/H6 -> 26.07142857 | O6: 4 | P6: 0 | Q6: 0 | R6: 0 | S6: 124151.1372 | T6: 124151.1372
A7: Programação dos lotes | B7: semanal | G7: 3 semanas | H7: =$H$5*3 -> 21 | I7: =365/H7 -> 17.38095238 | O7: 5 | P7: 0 | Q7: 0 | R7: 0 | S7: 124151.1372 | T7: 124151.1372
A8: Número de lotes por ano | B8: =VLOOKUP(B7,G5:I8,3,) -> 52.14285714 | D8: Município e UF: | E8: Concórdia, SC | G8: 4 semanas | H8: =$H$5*4 -> 28 | I8: =365/H8 -> 13.03571429 | O8: 6 | P8: 0 | Q8: 0 | R8: 0 | S8: 124151.1372 | T8: 124151.1372
A9: Conversão alimentar na creche | B9: 1.5 | O9: 7 | P9: 0 | Q9: 0 | R9: 0 | S9: 124151.1372 | T9: 124151.1372
A10: Consumo dos reprodutores (kg/matriz/ano) | B10: 1112 | D10: Data entrega do lote: | E10: 2014-12-01 | O10: 8 | P10: 0 | Q10: 0 | R10: 0 | S10: 124151.1372 | T10: 124151.1372
A11: Mortalidade de matrizes (%) | B11: 7.2 | O11: 9 | P11: 0 | Q11: 0 | R11: 0 | S11: 124151.1372 | T11: 124151.1372
O12: 10 | P12: 0 | Q12: 0 | R12: 0 | S12: 124151.1372 | T12: 124151.1372
A13: Investimento realizado | B13: Valor novo ou atualizado (R$) | C13: Vida útil (anos) | E13: Juros sobre capital | F13: Valor residual (%) | G13: Depreciação (R$/ano) | H13: Custo de capital (R$/ano) | O13: 11 | P13: 0 | Q13: 0 | R13: 0 | S13: 124151.1372 | T13: 124151.1372
A14: Equipamentos | B14: 345880 | C14: 12 | E14: 0.0795 | F14: 0.1 | G14: =IF(C14<=0,"",(B14*(1-F14))/C14) -> 25941 | H14: =-PMT($E$14,C14,B14,,0)-G14 -> 19836.7221 | O14: 12 | P14: 0 | Q14: -345880 | R14: 0 | S14: 124151.1372 | T14: -221728.8628
A15: Instalações | B15: 807053 | C15: 25 | F15: 0.1 | G15: =IF(C15<=0,"",(B15*(1-F15))/C15) -> 29053.908 | H15: =-PMT($E$14,C15,B15,,0)-G15 -> 46227.18923 | O15: 13 | P15: 0 | Q15: 0 | R15: 0 | S15: 124151.1372 | T15: 124151.1372
A16: Terreno ocupado pelas instalações | B16: 35000 | F16: 1 | G16: =IF(C15<=0,"",(B16*(1-F16))/C15) -> 0 | H16: =-PMT($E$14,C15,B16,,0)-G16 -> 3264.765019 | O16: 14 | P16: 0 | Q16: 0 | R16: 0 | S16: 124151.1372 | T16: 124151.1372
A17: Total | B17: =SUM(B14:B16) -> 1187933 | G17: =SUM(G14:G16) -> 54994.908 | H17: =SUM(H14:H16) -> 69328.67635 | O17: 15 | P17: 0 | Q17: 0 | R17: 0 | S17: 124151.1372 | T17: 124151.1372
G18: Financiamento | O18: 16 | P18: 0 | Q18: 0 | R18: 0 | S18: 124151.1372 | T18: 124151.1372
A19: Financiamento | B19: Unidade | C19: Valores | F19: Anual | G19: 1 | O19: 17 | P19: 0 | Q19: 0 | R19: 0 | S19: 124151.1372 | T19: 124151.1372
A20: Valor da prestação do financiamento | B20: Anual | C20: 130000 | F20: Trimestral | G20: 4 | O20: 18 | P20: 0 | Q20: 0 | R20: 0 | S20: 124151.1372 | T20: 124151.1372
F21: Semestral | G21: 2 | O21: 19 | P21: 0 | Q21: 0 | R21: 0 | S21: 124151.1372 | T21: 124151.1372
A22: Itens de despesa | B22: Unidade | C22: Valores | G22: =+VLOOKUP(B20,F19:G21,2,FALSE)*C20 -> 130000 | H22: Itens de despesas | I22: R$/ano | O22: 20 | P22: 0 | Q22: 0 | R22: 0 | S22: 124151.1372 | T22: 124151.1372
A23: Mão de obra familiar | B23: R$/mês | C23: =16540.21/12 -> 1378.350833 | F23: Unidades | H23: Mão de obra familiar | I23: =+C23*VLOOKUP(B23,$F$24:$G$28,2,FALSE) -> 16540.21 | J23: Mão de obra familiar | K23: =I23 -> 16540.21 | O23: 21 | P23: 0 | Q23: 0 | R23: 0 | S23: 124151.1372 | T23: 124151.1372
A24: Mão de obra contratada e encargos sociais | B24: R$/mês | C24: 7600 | F24: R$/matriz/ano | G24: =+B4 -> 497 | H24: Mão de obra contratada | I24: 91200 | J24: Mão de obra contratada | K24: =SUM(I24:I25) -> 91200 | O24: 22 | P24: 0 | Q24: 0 | R24: 0 | S24: 124151.1372 | T24: 124151.1372
A25: Diaristas e prestadores de serviços | B25: R$/lote | C25: 0 | F25: R$/cab | G25: =B4*B5 -> 12206.32 | H25: Diaristas e serviços | I25: 0 | J25: Outros custos variáveis | K25: =+SUM(I26:I33) -> 57520.5 | O25: 23 | P25: 0 | Q25: 0 | R25: 0 | S25: 124151.1372 | T25: 124151.1372
A26: Energia e aquecimento | B26: R$/mês | C26: =1543+250 -> 1793 | F26: R$/lote | G26: =+B8 -> 52.14285714 | H26: Energia e aquecimento | I26: 21516 | J26: Depreciação | K26: =+I34 -> 54994.908 | O26: 24 | P26: 0 | Q26: 0 | R26: 0 | S26: 124151.1372 | T26: 124151.1372
A27: Tratamento, transporte e aplicação de dejetos | B27: R$/ano | C27: 15880 | F27: R$/mês | G27: 12 | H27: Dejetos | I27: 15880 | J27: Custo de capital | K27: =E44 -> 69328.67635 | O27: 25 | P27: 0 | Q27: 0 | R27: 150293.3 | S27: 124151.1372 | T27: 274444.4372
A28: Licença ambiental | B28: R$/ano | C28: 62.5 | F28: R$/ano | G28: 1 | H28: Licença ambiental | I28: 62.5 | O28: 26 | P28: 0 | Q28: 0 | R28: 0 | S28: 124151.1372 | T28: 0
A29: Seguro | B29: R$/ano | C29: 850 | H29: Seguro | I29: 850 | O29: 27 | P29: 0 | Q29: 0 | R29: 0 | S29: 124151.1372 | T29: 0
A30: Manutenção | B30: R$/ano | C30: 10000 | H30: Manutenção | I30: 10000 | O30: 28 | P30: 0 | Q30: 0 | R30: 0 | S30: 124151.1372 | T30: 0
A31: Insumos para limpeza, desinfecção, vacinas e medicamentos | B31: R$/ano | C31: =1519+400+950 -> 2869 | G31: =C23/12 -> 114.8625694 | H31: Desinfetantes e medicamentos | I31: 2869 | O31: 29 | P31: 0 | Q31: 0 | R31: 0 | S31: 124151.1372 | T31: 0
A32: Despesas administrativas | B32: R$/mês | C32: =250+195 -> 445 | H32: Despesas administrativas | I32: 5340 | O32: 30 | P32: 0 | Q32: 0 | R32: 0 | S32: 124151.1372 | T32: 0
A33: Outros | B33: R$/ano | C33: =253+50+235+125+340 -> 1003 | H33: Outros | I33: 1003 | O33: 31 | P33: 0 | Q33: 0 | R33: 0 | S33: 124151.1372 | T33: 0
H34: Depreciação | I34: =G17 -> 54994.908 | O34: 32 | P34: 0 | Q34: 0 | R34: 0 | S34: 124151.1372 | T34: 0
A35: Itens de receita | B35: Unidade | C35: Valores | O35: 33 | P35: 0 | Q35: 0 | R35: 0 | S35: 124151.1372 | T35: 0
A36: Receita com a venda dos leitões | B36: R$/cab | C36: 23.71 | H36: Receita com a venda dos leitões | I36: =+C36*VLOOKUP(B36,$F$24:$G$28,2,FALSE) -> 289411.8472 | O36: 34 | P36: 0 | Q36: 0 | R36: 0 | S36: 124151.1372 | T36: 0
A37: Receita com a venda de dejeto ou composto | B37: R$/ano | C37: 0 | H37: Receita com a venda de dejeto ou composto | I37: =+C37*VLOOKUP(B37,$F$24:$G$28,2,FALSE) -> 0 | O37: 35 | P37: 0 | Q37: 0 | R37: 0 | S37: 124151.1372 | T37: 0
O38: 36 | P38: 0 | Q38: 0 | R38: 0 | S38: 124151.1372 | T38: 0
A39: Receita bruta e custos | B39: R$/kg vivo | C39: R$/cabeça | D39: R$/lote | E39: R$/ano | O39: 37 | P39: 0 | Q39: 0 | R39: 0 | S39: 124151.1372 | T39: 0
A40: A - Receita bruta | B40: =ROUND(C40/$B$6,4) -> 1.0304 | C40: =ROUND(E40/($B$4*$B$5),4) -> 23.71 | D40: =E40/$B$8 -> 5550.364193 | E40: =SUM(I36:I37) -> 289411.8472 | O40: 38 | P40: 0 | Q40: 0 | R40: 0 | S40: 124151.1372 | T40: 0
A41: B - Custos variáveis | B41: =ROUND(C41/$B$6,4) -> 0.5884 | C41: =ROUND(E41/($B$4*$B$5),4) -> 13.5389 | D41: =E41/$B$8 -> 3169.383479 | E41: =SUM(I23:I33) -> 165260.71 | O41: 39 | P41: 0 | Q41: 0 | R41: 0 | S41: 124151.1372 | T41: 0
A42: C - Depreciação | B42: =ROUND(C42/$B$6,4) -> 0.1958 | C42: =ROUND(E42/($B$4*$B$5),4) -> 4.5054 | D42: =E42/$B$8 -> 1054.696866 | E42: =I34 -> 54994.908 | O42: 40 | P42: 0 | Q42: 0 | R42: 0 | S42: 124151.1372 | T42: 0
A43: D - Custo operacional (B+C) | B43: =SUM(B41:B42) -> 0.7842 | C43: =SUM(C41:C42) -> 18.0443 | D43: =SUM(D41:D42) -> 4224.080345 | E43: =SUM(E41:E42) -> 220255.618 | O43: 41 | P43: 0 | Q43: 0 | R43: 0 | S43: 124151.1372 | T43: 0
A44: ="E - Custo de capital ou retorno esperado de "&E14*100&"% ao ano" -> E - Custo de capital ou retorno esperado de 7,95% ao ano | B44: =ROUND(C44/$B$6,4) -> 0.2468 | C44: =ROUND(E44/($B$4*$B$5),4) -> 5.6797 | D44: =E44/$B$8 -> 1329.591053 | E44: =IF(E14<=0,0,H17) -> 69328.67635 | O44: 42 | P44: 0 | Q44: 0 | R44: 0 | S44: 124151.1372 | T44: 0
A45: F - Custo total (B+C+E) | B45: =SUM(B43:B44) -> 1.031 | C45: =SUM(C43:C44) -> 23.724 | D45: =SUM(D43:D44) -> 5553.671398 | E45: =SUM(E43:E44) -> 289584.2943 | O45: 43 | P45: 0 | Q45: 0 | R45: 0 | S45: 124151.1372 | T45: 0
O46: 44 | P46: 0 | Q46: 0 | R46: 0 | S46: 124151.1372 | T46: 0
A47: Resultados | B47: R$/kg vivo | C47: R$/cabeça | D47: R$/lote | E47: R$/ano | O47: 45 | P47: 0 | Q47: 0 | R47: 0 | S47: 124151.1372 | T47: 0
A48: G - Margem bruta: (Receita bruta - Custo variável) | B48: =+B40-B41 -> 0.442 | C48: =+C40-C41 -> 10.1711 | D48: =+D40-D41 -> 2380.980713 | E48: =E40-E41 -> 124151.1372 | O48: 46 | P48: 0 | Q48: 0 | R48: 0 | S48: 124151.1372 | T48: 0
A49: H - Margem líquida: (Receita bruta - Custo operacional) | B49: =+B40-B43 -> 0.2462 | C49: =+C40-C43 -> 5.6657 | D49: 1326.283848 | E49: 69156.2292 | O49: 47 | P49: 0 | Q49: 0 | R49: 0 | S49: 124151.1372 | T49: 0
A50: I - Lucro líquido: (Receita bruta - Custo total) | B50: =+B40-B45 -> -0.0006 | C50: =+C40-C45 -> -0.014 | D50: =+D40-D45 -> -3.307205609 | E50: =E40-E45 -> -172.4471496 | O50: 48 | P50: 0 | Q50: 0 | R50: 0 | S50: 124151.1372 | T50: 0
A51: J - Geração de caixa (Entradas de caixa - Saídas de Caixa) | B51: =ROUND(C51/$B$6,4) -> 0.0381 | C51: =ROUND(E51/($B$4*$B$5),4) -> 0.8759 | D51: =E51/$B$8 -> 205.0395353 | E51: =E40-(E41-I23+G22) -> 10691.3472 | O51: 49 | P51: 0 | Q51: 0 | R51: 0 | S51: 124151.1372 | T51: 0
G52: Matriz da Análise financeira | O52: 50 | P52: 0 | Q52: 0 | R52: 0 | S52: 124151.1372 | T52: 0
A53: Composição do custo total | C53: Análise do resultado | G53: =IF(AND(E51<0,E40<E43),"Pior resultado possível! A receita bruta não cobre o custo operacional e a geração de caixa é negativa.","") ->  | H53: =IF(AND(E51>0,E40<E43),"Resultado ruim, mas honrando os compromissos financeiros. A receita bruta não cobre o custo operacional, mas a geração de caixa é positiva.","") ->  | O53: 51 | P53: 0 | Q53: 0 | R53: 0 | S53: 124151.1372 | T53: 0
O54: 52 | P54: 0 | Q54: 0 | R54: 0 | S54: 124151.1372 | T54: 0
C55: =G53&H53&G57&H57&G64&H64 -> Resultado abaixo do esperado, mas honrando os compromissos financeiros. A receita bruta cobre o custo operacional, mas não atende a expectativa de retorno sobre o investimento de 7,95% ao ano. Entretanto, a geração de caixa é positiva. | O55: 53 | P55: 0 | Q55: 0 | R55: 0 | S55: 124151.1372 | T55: 0
O56: 54 | P56: 0 | Q56: 0 | R56: 0 | S56: 124151.1372 | T56: 0
G57: =IF(AND(E51<0,E40>=E43,E40<E45),"Resultado abaixo do esperado e com problemas para honrar os compromissos financeiros. A receita bruta cobre o custo operacional, mas não atende a expectativa de retorno sobre o investimento de "&$E$14*100&"% ao ano. Além disso, a geração de caixa é negativa.","") ->  | H57: =IF(AND(E51>=0,E40>=E43,E40<E45),"Resultado abaixo do esperado, mas honrando os compromissos financeiros. A receita bruta cobre o custo operacional, mas não atende a expectativa de retorno sobre o investimento de "&$E$14*100&"% ao ano. Entretanto, a geração de caixa é positiva.","") -> Resultado abaixo do esperado, mas honrando os compromissos financeiros. A receita bruta cobre o custo operacional, mas não atende a expectativa de retorno sobre o investimento de 7,95% ao ano. Entretanto, a geração de caixa é positiva. | O57: 55 | P57: 0 | Q57: 0 | R57: 0 | S57: 124151.1372 | T57: 0
O58: 56 | P58: 0 | Q58: 0 | R58: 0 | S58: 124151.1372 | T58: 0
O59: 57 | P59: 0 | Q59: 0 | R59: 0 | S59: 124151.1372 | T59: 0
O60: 58 | P60: 0 | Q60: 0 | R60: 0 | S60: 124151.1372 | T60: 0
O61: 59 | P61: 0 | Q61: 0 | R61: 0 | S61: 124151.1372 | T61: 0
O62: 60 | P62: 0 | Q62: 0 | R62: 0 | S62: 124151.1372 | T62: 0
O63: 61 | P63: 0 | Q63: 0 | R63: 0 | S63: 124151.1372 | T63: 0
G64: =IF(AND(E51<0,E40>=E45),"Resultado acima do esperado mas com problemas para honrar os compromissos financeiros. A receita bruta atende a expectativa de retorno sobre o investimento de "&$E$14*100&"% ao ano. Entretanto, a geração de caixa é negativa.","") ->  | H64: =IF(AND(E51>=0,E40>=E45),"Melhor resultado possível! A receita bruta atende a expectativa de retorno sobre o investimento de "&$E$14*100&"% ao ano e a geração de caixa é positiva.","") ->  | O64: 62 | P64: 0 | Q64: 0 | R64: 0 | S64: 124151.1372 | T64: 0
O65: 63 | P65: 0 | Q65: 0 | R65: 0 | S65: 124151.1372 | T65: 0
O66: 64 | P66: 0 | Q66: 0 | R66: 0 | S66: 124151.1372 | T66: 0
O67: 65 | P67: 0 | Q67: 0 | R67: 0 | S67: 124151.1372 | T67: 0
C68: =IF(T3<0,"","A Taxa Interna de Retorno (TIR) do investimento foi estimada em "&TRUNC(U1,1)&"% ao ano.") -> A Taxa Interna de Retorno (TIR) do investimento foi estimada em 8,2% ao ano. | O68: 66 | P68: =IF($O68/$C$15=INT($O68/$C$15),-$B$15,0)*IF(MAX($C$14:$C$15)-$O68<$C$15,0,1) -> 0 | Q68: =IF($O68/$C$14=INT($O68/$C$14),-$B$14,0)*IF(MAX($C$14:$C$15)-$O68<$C$14,0,1) -> 0 | R68: =IF($O68=MAX($C$14:$C$15),$B$16+$F$14*$B$14+$F$15*$B$15,0) -> 0 | S68: =$E$40-$E$41 -> 124151.1372 | T68: =IF($O68>MAX($C$14:$C$15),0,SUM(P68:S68)) -> 0
O69: 67 | P69: 0 | Q69: 0 | R69: 0 | S69: 124151.1372 | T69: 0
O70: 68 | P70: 0 | Q70: 0 | R70: 0 | S70: 124151.1372 | T70: 0
O71: 69 | P71: 0 | Q71: 0 | R71: 0 | S71: 124151.1372 | T71: 0
O72: 70 | P72: 0 | Q72: 0 | R72: 0 | S72: 124151.1372 | T72: 0
O73: 71 | P73: 0 | Q73: 0 | R73: 0 | S73: 124151.1372 | T73: 0
O74: 72 | P74: 0 | Q74: 0 | R74: 0 | S74: 124151.1372 | T74: 0
O75: 73 | P75: 0 | Q75: 0 | R75: 0 | S75: 124151.1372 | T75: 0
O76: 74 | P76: 0 | Q76: 0 | R76: 0 | S76: 124151.1372 | T76: 0
A77: Mão de obra familiar | B77: =+K23 -> 16540.21 | O77: 75 | P77: 0 | Q77: 0 | R77: 0 | S77: 124151.1372 | T77: 0
A78: Mão de obra contratada | B78: =+K24 -> 91200 | O78: 76 | P78: 0 | Q78: 0 | R78: 0 | S78: 124151.1372 | T78: 0
A79: Outros custos variáveis | B79: =+K25 -> 57520.5 | O79: 77 | P79: 0 | Q79: 0 | R79: 0 | S79: 124151.1372 | T79: 0
A80: Depreciação | B80: =+K26 -> 54994.908 | O80: 78 | P80: 0 | Q80: 0 | R80: 0 | S80: 124151.1372 | T80: 0
A81: Custo de capital | B81: =+K27 -> 69328.67635 | O81: 79 | P81: 0 | Q81: 0 | R81: 0 | S81: 124151.1372 | T81: 0
O82: 80 | P82: 0 | Q82: 0 | R82: 0 | S82: 124151.1372 | T82: 0
O83: 81 | P83: 0 | Q83: 0 | R83: 0 | S83: 124151.1372 | T83: 0
O84: 82 | P84: 0 | Q84: 0 | R84: 0 | S84: 124151.1372 | T84: 0
O85: 83 | P85: 0 | Q85: 0 | R85: 0 | S85: 124151.1372 | T85: 0
O86: 84 | P86: 0 | Q86: 0 | R86: 0 | S86: 124151.1372 | T86: 0
O87: 85 | P87: 0 | Q87: 0 | R87: 0 | S87: 124151.1372 | T87: 0
O88: 86 | P88: 0 | Q88: 0 | R88: 0 | S88: 124151.1372 | T88: 0
O89: 87 | P89: 0 | Q89: 0 | R89: 0 | S89: 124151.1372 | T89: 0
O90: 88 | P90: 0 | Q90: 0 | R90: 0 | S90: 124151.1372 | T90: 0
O91: 89 | P91: 0 | Q91: 0 | R91: 0 | S91: 124151.1372 | T91: 0
O92: 90 | P92: 0 | Q92: 0 | R92: 0 | S92: 124151.1372 | T92: 0
O93: 91 | P93: 0 | Q93: 0 | R93: 0 | S93: 124151.1372 | T93: 0
O94: 92 | P94: 0 | Q94: 0 | R94: 0 | S94: 124151.1372 | T94: 0
O95: 93 | P95: 0 | Q95: 0 | R95: 0 | S95: 124151.1372 | T95: 0
O96: 94 | P96: 0 | Q96: 0 | R96: 0 | S96: 124151.1372 | T96: 0
O97: 95 | P97: 0 | Q97: 0 | R97: 0 | S97: 124151.1372 | T97: 0
O98: 96 | P98: 0 | Q98: 0 | R98: 0 | S98: 124151.1372 | T98: 0
O99: 97 | P99: 0 | Q99: 0 | R99: 0 | S99: 124151.1372 | T99: 0
O100: 98 | P100: 0 | Q100: 0 | R100: 0 | S100: 124151.1372 | T100: 0
O101: 99 | P101: 0 | Q101: 0 | R101: 0 | S101: 124151.1372 | T101: 0
P102: x | Q102: x | R102: x | S102: x | T102: x

Sheet Crechário
A1: CÁLCULO SIMPLIFICADO DO CUSTO DE PRODUÇÃO DE LEITÕES EM CRECHE COM CONTRATO DE PARCEIRA | K1: Ano | L1: Instalações | M1: Equipametos | N1: Terreno e valor residual | O1: Margem bruta (MB) | P1: Entradas Líquidas de Caixa ( | Q1: =IRR(P2:P101,)*100 -> 8.345055144 | AA1: CHAVE | AB1: VERIFICADOR | AC1: A1 | AD1: A2 | AE1: A3 | AF1: A4 | AG1: A5 | AH1: A6 | AI1: A7 | AJ1: A8 | AK1: A9 | AL1: A10 | AM1: A11 | AN1: A12 | AO1: A13 | AP1: A14 | AQ1: A15 | AR1: A16 | AS1: A17 | AT1: A18 | AU1: A19 | AV1: B1 | AW1: B2 | AX1: B3 | AY1: B4 | AZ1: B5 | BA1: B6 | BB1: B7 | BC1: C1 | BD1: C2 | BE1: C3 | BF1: C4 | BG1: C5 | BH1: C6 | BI1: C7 | BJ1: C8 | BK1: C9 | BL1: C10 | BM1: C11 | BN1: C12 | BO1: C13 | BP1: C14 | BQ1: C15 | BR1: D1 | BS1: D2 | BT1: D3 | BU1: D4 | BV1: D5 | BW1: D6 | BX1: D7 | BY1: D8 | BZ1: D9 | CA1: D10 | CB1: D11
K2: 0 | L2: =-$B$14 -> -297079 | M2: =-$B$13 -> -74270 | N2: =-$B$15 -> -1500 | O2: 0 | P2: =IF($K2>MAX($C$13:$C$14),0,SUM(L2:O2)) -> -372849 | AA2: =AC2&AD2&AF2&AG2 -> exemplo 3crechárioPoço das Antas, RS41883 | AC2: =E4 -> exemplo 3 | AD2: =E6 -> crechário | AF2: =E7 -> Poço das Antas, RS | AG2: =E9 -> 41883 | AI2: =B4 -> 1522 | AK2: =B6 -> 23 | AM2: =B7 -> 36.5 | AN2: =B8 -> 14 | AQ2: =B10 -> 7.2277 | AR2: =B9 -> 1.365 | AU2: =B5 -> 0.96 | AV2: =B13 -> 74270 | AW2: =B14 -> 297079 | AX2: =B15 -> 1500 | AY2: =C13 -> 12 | AZ2: =C14 -> 25 | BA2: =E13 -> 0.02 | BB2: =G20 -> 15000 | BC2: =H22 -> 31753.65 | BD2: =H23 -> 0 | BE2: =H24 -> 0 | BF2: =H25 -> 1340 | BH2: =H26 -> 361.385 | BI2: =H27 -> 12.5 | BJ2: =H28 -> 200 | BK2: =H29 -> 1200 | BL2: =H30 -> 817.55 | BM2: =H31 -> 240 | BN2: =H32 -> 1705.03 | BO2: =H33 -> 16265.094 | BP2: =H35 -> 75828.88005 | BQ2: =H36 -> 0 | BR2: =B39 -> 0.3026 | BS2: =B40 -> 0.1502 | BT2: =B41 -> 0.0649 | BU2: =B42 -> 0.2151 | BV2: =B43 -> 0.0241 | BW2: =B44 -> 0.2392 | BX2: =B47 -> 0.1524 | BY2: =B48 -> 0.0875 | BZ2: =B49 -> 0.0634 | CA2: =B50 -> 0.2262 | CB2: =Q1 -> 8.345055144
A3: Alojamento e desempenho | B3: Índices técnicos | D3: Caracterização | K3: 1 | L3: =IF($K3/$C$14=INT($K3/$C$14),-$B$14,0)*IF(MAX($C$13:$C$14)-$K3<$C$14,0,1) -> 0 | M3: =IF($K3/$C$13=INT($K3/$C$13),-$B$13,0)*IF(MAX($C$13:$C$14)-$K3<$C$13,0,1) -> 0 | N3: =IF($K3=MAX($C$13:$C$14),$B$15+$F$12*$B$13+$F$13*$B$14,0) -> 0 | O3: =$E$39-$E$40 -> 38198.76505 | P3: 38198.76505
A4: Alojamento inicial (cabeças/lote) | B4: 1522 | D4: Identificação da granja: | E4: exemplo 3 | K4: 2 | L4: 0 | M4: 0 | N4: 0 | O4: =$E$39-$E$40 -> 38198.76505 | P4: =IF($K4>MAX($C$13:$C$14),0,SUM(L4:O4)) -> 38198.76505
A5: Mortalidade (%) | B5: 0.96 | K5: 3 | L5: 0 | M5: 0 | N5: 0 | O5: 38198.76505 | P5: 38198.76505
A6: Peso médio de venda (kg vivo/cabeça) | B6: 23 | D6: Sistema de criação: | E6: crechário | K6: 4 | L6: 0 | M6: 0 | N6: 0 | O6: 38198.76505 | P6: 38198.76505
A7: Duração do lote (dias) | B7: 36.5 | D7: Município e UF: | E7: Poço das Antas, RS | K7: 5 | L7: 0 | M7: 0 | N7: 0 | O7: 38198.76505 | P7: 38198.76505
A8: Vazio sanitário (dias/lote) | B8: 14 | K8: 6 | L8: 0 | M8: 0 | N8: 0 | O8: 38198.76505 | P8: 38198.76505
A9: Conversão alimentar | B9: 1.365 | D9: Data entrega do lote: | E9: 2014-09-01 | K9: 7 | L9: 0 | M9: 0 | N9: 0 | O9: 38198.76505 | P9: 38198.76505
A10: Número de lotes por ano | B10: =ROUND((365/(B7+B8)),4) -> 7.2277 | K10: 8 | L10: 0 | M10: 0 | N10: 0 | O10: 38198.76505 | P10: 38198.76505
F11: Valor residual (%) | G11: Depreciação (R$/ano) | H11: Custo de capital (R$/ano) | K11: 9 | L11: 0 | M11: 0 | N11: 0 | O11: 38198.76505 | P11: 38198.76505
A12: Investimento realizado | B12: Valor novo ou atualizado (R$) | C12: Vida útil (anos) | E12: Juros sobre capital | F12: 0.1 | G12: =IF(C13<=0,"",(B13*(1-F12))/C13) -> 5570.25 | H12: =-PMT($E$13,C13,B13,,0)-G12 -> 1452.691241 | K12: 10 | L12: 0 | M12: 0 | N12: 0 | O12: 38198.76505 | P12: 38198.76505
A13: Equipamentos | B13: 74270 | C13: 12 | E13: 0.02 | F13: 0.1 | G13: =IF(C14<=0,"",(B14*(1-F13))/C14) -> 10694.844 | H13: =-PMT($E$13,C14,B14,,0)-G13 -> 4521.672625 | K13: 11 | L13: 0 | M13: 0 | N13: 0 | O13: 38198.76505 | P13: 38198.76505
A14: Instalações | B14: 297079 | C14: 25 | F14: 1 | G14: =IF(C14<=0,"",(B15*(1-F14))/C14) -> 0 | H14: =-PMT($E$13,C14,B15,,0)-G14 -> 76.83065763 | K14: 12 | L14: 0 | M14: -74270 | N14: 0 | O14: 38198.76505 | P14: -36071.23495
A15: Terreno ocupado pelas instalações | B15: 1500 | G15: =SUM(G12:G14) -> 16265.094 | H15: =SUM(H12:H14) -> 6051.194523 | K15: 13 | L15: 0 | M15: 0 | N15: 0 | O15: 38198.76505 | P15: 38198.76505
A16: Total | B16: =SUM(B13:B15) -> 372849 | G16: Financiamento | H16: Unidades | K16: 14 | L16: 0 | M16: 0 | N16: 0 | O16: 38198.76505 | P16: 38198.76505
F17: Anual | G17: 1 | H17: R$/cab | I17: =B10*B4*(1-B5/100) -> 10894.95403 | K17: 15 | L17: 0 | M17: 0 | N17: 0 | O17: 38198.76505 | P17: 38198.76505
A18: Financiamento | B18: Unidade | C18: Valores | F18: Trimestral | G18: 4 | H18: R$/lote | I18: =+B10 -> 7.2277 | K18: 16 | L18: 0 | M18: 0 | N18: 0 | O18: 38198.76505 | P18: 38198.76505
A19: Valor da prestação do financiamento | B19: Anual | C19: 15000 | F19: Semestral | G19: 2 | H19: R$/mês | I19: 12 | K19: 17 | L19: 0 | M19: 0 | N19: 0 | O19: 38198.76505 | P19: 38198.76505
G20: =+VLOOKUP(B19,F17:G19,2,FALSE)*C19 -> 15000 | H20: R$/ano | I20: 1 | K20: 18 | L20: 0 | M20: 0 | N20: 0 | O20: 38198.76505 | P20: 38198.76505
A21: Itens de despesas | B21: Unidade | C21: Valores | G21: Itens de despesas | H21: R$/ano | K21: 19 | L21: 0 | M21: 0 | N21: 0 | O21: 38198.76505 | P21: 38198.76505
A22: Mão de obra familiar | B22: R$/ano | C22: 31753.65 | G22: Mão de obra familiar | H22: =+C22*VLOOKUP(B22,$H$17:$I$20,2,FALSE) -> 31753.65 | I22: Mão de obra familiar | J22: =H22 -> 31753.65 | K22: 20 | L22: 0 | M22: 0 | N22: 0 | O22: 38198.76505 | P22: 38198.76505
A23: Mão de obra contratada e encargos sociais | B23: R$/mês | C23: 0 | G23: Mão de obra contratada | H23: =+C23*VLOOKUP(B23,$H$17:$I$20,2,FALSE) -> 0 | I23: Mão de obra contratada | J23: =SUM(H23:H24) -> 0 | K23: 21 | L23: 0 | M23: 0 | N23: 0 | O23: 38198.76505 | P23: 38198.76505
A24: Diaristas e prestadores de serviços | B24: R$/lote | C24: 0 | G24: Diaristas e serviços | H24: 0 | I24: Outros custos variáveis | J24: =+SUM(H25:H32) -> 5876.465 | K24: 22 | L24: 0 | M24: 0 | N24: 0 | O24: 38198.76505 | P24: 38198.76505
A25: Energia e aquecimento | B25: R$/ano | C25: 1340 | G25: Energia e aquecimento | H25: 1340 | I25: Depreciação | J25: =+H33 -> 16265.094 | K25: 23 | L25: 0 | M25: 0 | N25: 0 | O25: 38198.76505 | P25: 38198.76505
A26: Tratamento, transporte e aplicação de dejetos | B26: R$/lote | C26: 50 | G26: Dejetos | H26: 361.385 | I26: Custo de capital | J26: =E43 -> 6051.194523 | K26: 24 | L26: 0 | M26: 0 | N26: 0 | O26: 38198.76505 | P26: 38198.76505
A27: Licença ambiental | B27: R$/ano | C27: 12.5 | G27: Licença ambiental | H27: 12.5 | K27: 25 | L27: 0 | M27: 0 | N27: 38634.9 | O27: 38198.76505 | P27: 76833.66505
A28: Seguro | B28: R$/ano | C28: 200 | G28: Seguro | H28: 200 | K28: 26 | L28: 0 | M28: 0 | N28: 0 | O28: 38198.76505 | P28: 0
A29: Manutenção | B29: R$/mês | C29: 100 | G29: Manutenção | H29: 1200 | K29: 27 | L29: 0 | M29: 0 | N29: 0 | O29: 38198.76505 | P29: 0
A30: Insumos para limpeza, desinfecção, vacinas e medicamentos | B30: R$/ano | C30: 817.55 | G30: Desinfetantes e medicamentos | H30: 817.55 | K30: 28 | L30: 0 | M30: 0 | N30: 0 | O30: 38198.76505 | P30: 0
A31: Despesas administrativas | B31: R$/ano | C31: 240 | G31: Despesas administrativas | H31: 240 | K31: 29 | L31: 0 | M31: 0 | N31: 0 | O31: 38198.76505 | P31: 0
A32: Outros | B32: R$/ano | C32: 1705.03 | G32: Outros | H32: 1705.03 | K32: 30 | L32: 0 | M32: 0 | N32: 0 | O32: 38198.76505 | P32: 0
G33: Depreciação | H33: =G15 -> 16265.094 | K33: 31 | L33: 0 | M33: 0 | N33: 0 | O33: 38198.76505 | P33: 0
A34: Itens de receita | B34: Unidade | C34: Valores | K34: 32 | L34: 0 | M34: 0 | N34: 0 | O34: 38198.76505 | P34: 0
A35: Receita com a venda dos leitões | B35: R$/cab | C35: 6.96 | G35: Receita com a venda dos leitões ou suínos terminados | H35: =+C35*VLOOKUP(B35,$H$17:$I$20,2,FALSE) -> 75828.88005 | K35: 33 | L35: 0 | M35: 0 | N35: 0 | O35: 38198.76505 | P35: 0
A36: Receita com a venda de dejeto ou composto | B36: R$/ano | C36: 0 | G36: Receita com a venda de dejeto ou composto | H36: =+C36*VLOOKUP(B36,$H$17:$I$20,2,FALSE) -> 0 | K36: 34 | L36: 0 | M36: 0 | N36: 0 | O36: 38198.76505 | P36: 0
K37: 35 | L37: 0 | M37: 0 | N37: 0 | O37: 38198.76505 | P37: 0
A38: Receita bruta e custos | B38: R$/kg vivo | C38: R$/cabeça | D38: R$/lote | E38: R$/ano | K38: 36 | L38: 0 | M38: 0 | N38: 0 | O38: 38198.76505 | P38: 0
A39: A - Receita bruta | B39: =ROUND(C39/$B$6,4) -> 0.3026 | C39: =ROUND(D39/($B$4*(1-$B$5/100)),4) -> 6.96 | D39: =E39/$B$10 -> 10491.42605 | E39: =SUM(H35:H36) -> 75828.88005 | K39: 37 | L39: 0 | M39: 0 | N39: 0 | O39: 38198.76505 | P39: 0
A40: B - Custos variáveis | B40: =ROUND(C40/$B$6,4) -> 0.1502 | C40: =ROUND(D40/($B$4*(1-$B$5/100)),4) -> 3.4539 | D40: =E40/$B$10 -> 5206.37478 | E40: =SUM(H22:H32) -> 37630.115 | K40: 38 | L40: 0 | M40: 0 | N40: 0 | O40: 38198.76505 | P40: 0
A41: C - Depreciação | B41: =ROUND(C41/$B$6,4) -> 0.0649 | C41: =ROUND(D41/($B$4*(1-$B$5/100)),4) -> 1.4929 | D41: =E41/$B$10 -> 2250.383109 | E41: =H33 -> 16265.094 | K41: 39 | L41: 0 | M41: 0 | N41: 0 | O41: 38198.76505 | P41: 0
A42: D - Custo operacional (B+C) | B42: =SUM(B40:B41) -> 0.2151 | C42: =ROUND(D42/($B$4*(1-$B$5/100)),4) -> 4.9468 | D42: =E42/$B$10 -> 7456.75789 | E42: =SUM(E40:E41) -> 53895.209 | K42: 40 | L42: 0 | M42: 0 | N42: 0 | O42: 38198.76505 | P42: 0
A43: ="E - Custo de capital ou retorno esperado de "&E13*100&"% ao ano" -> E - Custo de capital ou retorno esperado de 2% ao ano | B43: =ROUND(C43/$B$6,4) -> 0.0241 | C43: 0.5554 | D43: 837.222702 | E43: =IF(E13<=0,0,H15) -> 6051.194523 | K43: 41 | L43: 0 | M43: 0 | N43: 0 | O43: 38198.76505 | P43: 0
A44: F - Custo total (B+C+E) | B44: =SUM(B42:B43) -> 0.2392 | C44: 5.5022 | D44: 8293.980592 | E44: =SUM(E42:E43) -> 59946.40352 | K44: 42 | L44: 0 | M44: 0 | N44: 0 | O44: 38198.76505 | P44: 0
K45: 43 | L45: 0 | M45: 0 | N45: 0 | O45: 38198.76505 | P45: 0
A46: Resultados | B46: R$/kg vivo | C46: R$/cabeça | D46: R$/lote | E46: R$/ano | K46: 44 | L46: 0 | M46: 0 | N46: 0 | O46: 38198.76505 | P46: 0
A47: G - Margem bruta: (Receita bruta - Custo variável) | B47: =+B39-B40 -> 0.1524 | C47: =+C39-C40 -> 3.5061 | D47: =+D39-D40 -> 5285.051268 | E47: =E39-E40 -> 38198.76505 | K47: 45 | L47: 0 | M47: 0 | N47: 0 | O47: 38198.76505 | P47: 0
A48: H - Margem líquida: (Receita bruta - Custo operacional) | B48: =+B39-B42 -> 0.0875 | C48: =+C39-C42 -> 2.0132 | D48: 3034.668158 | E48: 21933.67105 | K48: 46 | L48: 0 | M48: 0 | N48: 0 | O48: 38198.76505 | P48: 0
A49: I - Lucro líquido: (Receita bruta - Custo total) | B49: =+B39-B44 -> 0.0634 | C49: =+C39-C44 -> 1.4578 | D49: =+D39-D44 -> 2197.445456 | E49: =E39-E44 -> 15882.47652 | K49: 47 | L49: 0 | M49: 0 | N49: 0 | O49: 38198.76505 | P49: 0
A50: J - Geração de caixa (Entradas de caixa - Saídas de Caixa) | B50: =ROUND(C50/$B$6,4) -> 0.2262 | C50: =ROUND(D50/($B$4*$B$5),4) -> 5.2036 | D50: =E50/$B$10 -> 7603.029324 | E50: =E39-(E40-H22+G20) -> 54952.41505 | K50: 48 | L50: 0 | M50: 0 | N50: 0 | O50: 38198.76505 | P50: 0
G51: Matriz da Análise financeira | K51: 49 | L51: 0 | M51: 0 | N51: 0 | O51: 38198.76505 | P51: 0
A52: Composição do custo total | C52: Análise do resultado | G52: =IF(AND(E50<0,E39<E42),"Pior resultado possível! A receita bruta não cobre o custo operacional e a geração de caixa é negativa.","") ->  | H52: =IF(AND(E50>0,E39<E42),"Resultado ruim, mas honrando os compromissos financeiros. A receita bruta não cobre o custo operacional, mas a geração de caixa é positiva.","") ->  | K52: 50 | L52: 0 | M52: 0 | N52: 0 | O52: 38198.76505 | P52: 0
K53: 51 | L53: 0 | M53: 0 | N53: 0 | O53: 38198.76505 | P53: 0
C54: =G52&H52&G56&H56&G63&H63 -> Melhor resultado possível! A receita bruta atende a expectativa de retorno sobre o investimento de 2% ao ano e a geração de caixa é positiva. | K54: 52 | L54: 0 | M54: 0 | N54: 0 | O54: 38198.76505 | P54: 0
K55: 53 | L55: 0 | M55: 0 | N55: 0 | O55: 38198.76505 | P55: 0
G56: =IF(AND(E50<0,E39>=E42,E39<E44),"Resultado abaixo do esperado e com problemas para honrar os compromissos financeiros. A receita bruta cobre o custo operacional, mas não atende a expectativa de retorno sobre o investimento de "&$E$13*100&"% ao ano. Além disso, a geração de caixa é negativa.","") ->  | H56: =IF(AND(E50>=0,E39>=E42,E39<E44),"Resultado abaixo do esperado, mas honrando os compromissos financeiros. A receita bruta cobre o custo operacional, mas não atende a expectativa de retorno sobre o investimento de "&$E$13*100&"% ao ano. Entretanto, a geração de caixa é positiva.","") ->  | K56: 54 | L56: 0 | M56: 0 | N56: 0 | O56: 38198.76505 | P56: 0
K57: 55 | L57: 0 | M57: 0 | N57: 0 | O57: 38198.76505 | P57: 0
K58: 56 | L58: 0 | M58: 0 | N58: 0 | O58: 38198.76505 | P58: 0
K59: 57 | L59: 0 | M59: 0 | N59: 0 | O59: 38198.76505 | P59: 0
K60: 58 | L60: 0 | M60: 0 | N60: 0 | O60: 38198.76505 | P60: 0
K61: 59 | L61: 0 | M61: 0 | N61: 0 | O61: 38198.76505 | P61: 0
K62: 60 | L62: 0 | M62: 0 | N62: 0 | O62: 38198.76505 | P62: 0
G63: =IF(AND(E50<0,E39>=E44),"Resultado acima do esperado mas com problemas para honrar os compromissos financeiros. A receita bruta atende a expectativa de retorno sobre o investimento de "&$E$13*100&"% ao ano. Entretanto, a geração de caixa é negativa.","") ->  | H63: =IF(AND(E50>=0,E39>=E44),"Melhor resultado possível! A receita bruta atende a expectativa de retorno sobre o investimento de "&$E$13*100&"% ao ano e a geração de caixa é positiva.","") -> Melhor resultado possível! A receita bruta atende a expectativa de retorno sobre o investimento de 2% ao ano e a geração de caixa é positiva. | K63: 61 | L63: 0 | M63: 0 | N63: 0 | O63: 38198.76505 | P63: 0
K64: 62 | L64: 0 | M64: 0 | N64: 0 | O64: 38198.76505 | P64: 0
K65: 63 | L65: 0 | M65: 0 | N65: 0 | O65: 38198.76505 | P65: 0
K66: 64 | L66: 0 | M66: 0 | N66: 0 | O66: 38198.76505 | P66: 0
C67: =IF(P3<0,"","A Taxa Interna de Retorno (TIR) do investimento foi estimada em "&TRUNC(Q1,1)&"% ao ano.") -> A Taxa Interna de Retorno (TIR) do investimento foi estimada em 8,3% ao ano. | K67: 65 | L67: =IF($K67/$C$14=INT($K67/$C$14),-$B$14,0)*IF(MAX($C$13:$C$14)-$K67<$C$14,0,1) -> 0 | M67: =IF($K67/$C$13=INT($K67/$C$13),-$B$13,0)*IF(MAX($C$13:$C$14)-$K67<$C$13,0,1) -> 0 | N67: =IF($K67=MAX($C$13:$C$14),$B$15+$F$12*$B$13+$F$13*$B$14,0) -> 0 | O67: 38198.76505 | P67: 0
K68: 66 | L68: 0 | M68: 0 | N68: 0 | O68: =$E$39-$E$40 -> 38198.76505 | P68: =IF($K68>MAX($C$13:$C$14),0,SUM(L68:O68)) -> 0
K69: 67 | L69: 0 | M69: 0 | N69: 0 | O69: 38198.76505 | P69: 0
K70: 68 | L70: 0 | M70: 0 | N70: 0 | O70: 38198.76505 | P70: 0
K71: 69 | L71: 0 | M71: 0 | N71: 0 | O71: 38198.76505 | P71: 0
K72: 70 | L72: 0 | M72: 0 | N72: 0 | O72: 38198.76505 | P72: 0
K73: 71 | L73: 0 | M73: 0 | N73: 0 | O73: 38198.76505 | P73: 0
K74: 72 | L74: 0 | M74: 0 | N74: 0 | O74: 38198.76505 | P74: 0
K75: 73 | L75: 0 | M75: 0 | N75: 0 | O75: 38198.76505 | P75: 0
K76: 74 | L76: 0 | M76: 0 | N76: 0 | O76: 38198.76505 | P76: 0
A77: Mão de obra familiar | B77: =+J22 -> 31753.65 | K77: 75 | L77: 0 | M77: 0 | N77: 0 | O77: 38198.76505 | P77: 0
A78: Mão de obra contratada | B78: =+J23 -> 0 | K78: 76 | L78: 0 | M78: 0 | N78: 0 | O78: 38198.76505 | P78: 0
A79: Outros custos variáveis | B79: =+J24 -> 5876.465 | K79: 77 | L79: 0 | M79: 0 | N79: 0 | O79: 38198.76505 | P79: 0
A80: Custo de capital | B80: =+J26 -> 6051.194523 | K80: 78 | L80: 0 | M80: 0 | N80: 0 | O80: 38198.76505 | P80: 0
A81: Depreciação | B81: =+J25 -> 16265.094 | K81: 79 | L81: 0 | M81: 0 | N81: 0 | O81: 38198.76505 | P81: 0
K82: 80 | L82: 0 | M82: 0 | N82: 0 | O82: 38198.76505 | P82: 0
K83: 81 | L83: 0 | M83: 0 | N83: 0 | O83: 38198.76505 | P83: 0
K84: 82 | L84: 0 | M84: 0 | N84: 0 | O84: 38198.76505 | P84: 0
K85: 83 | L85: 0 | M85: 0 | N85: 0 | O85: 38198.76505 | P85: 0
K86: 84 | L86: 0 | M86: 0 | N86: 0 | O86: 38198.76505 | P86: 0
K87: 85 | L87: 0 | M87: 0 | N87: 0 | O87: 38198.76505 | P87: 0
K88: 86 | L88: 0 | M88: 0 | N88: 0 | O88: 38198.76505 | P88: 0
K89: 87 | L89: 0 | M89: 0 | N89: 0 | O89: 38198.76505 | P89: 0
K90: 88 | L90: 0 | M90: 0 | N90: 0 | O90: 38198.76505 | P90: 0
K91: 89 | L91: 0 | M91: 0 | N91: 0 | O91: 38198.76505 | P91: 0
K92: 90 | L92: 0 | M92: 0 | N92: 0 | O92: 38198.76505 | P92: 0
K93: 91 | L93: 0 | M93: 0 | N93: 0 | O93: 38198.76505 | P93: 0
K94: 92 | L94: 0 | M94: 0 | N94: 0 | O94: 38198.76505 | P94: 0
K95: 93 | L95: 0 | M95: 0 | N95: 0 | O95: 38198.76505 | P95: 0
K96: 94 | L96: 0 | M96: 0 | N96: 0 | O96: 38198.76505 | P96: 0
K97: 95 | L97: 0 | M97: 0 | N97: 0 | O97: 38198.76505 | P97: 0
K98: 96 | L98: 0 | M98: 0 | N98: 0 | O98: 38198.76505 | P98: 0
K99: 97 | L99: 0 | M99: 0 | N99: 0 | O99: 38198.76505 | P99: 0
K100: 98 | L100: 0 | M100: 0 | N100: 0 | O100: 38198.76505 | P100: 0
K101: 99 | L101: 0 | M101: 0 | N101: 0 | O101: 38198.76505 | P101: 0
L102: -297079 | M102: -74270 | N102: 0 | O102: 38198.76505 | P102: -333150.235

Sheet Terminação
A1: CÁLCULO SIMPLIFICADO DO CUSTO DE PRODUÇÃO DE SUÍNOS EM TERMINAÇÃO COM CONTRATO DE PARCERIA | K1: Ano | L1: Instalações | M1: Equipametos | N1: Terreno e valor residual | O1: Margem bruta (MB) | P1: Entradas Líquidas de Caixa ( | Q1: =IRR(P2:P101,)*100 -> 9.150957072 | AA1: CHAVE | AB1: VERIFICADOR | AC1: A1 | AD1: A2 | AE1: A3 | AF1: A4 | AG1: A5 | AH1: A6 | AI1: A7 | AJ1: A8 | AK1: A9 | AL1: A10 | AM1: A11 | AN1: A12 | AO1: A13 | AP1: A14 | AQ1: A15 | AR1: A16 | AS1: A17 | AT1: A18 | AU1: A19 | AV1: B1 | AW1: B2 | AX1: B3 | AY1: B4 | AZ1: B5 | BA1: B6 | BB1: B7 | BC1: C1 | BD1: C2 | BE1: C3 | BF1: C4 | BG1: C5 | BH1: C6 | BI1: C7 | BJ1: C8 | BK1: C9 | BL1: C10 | BM1: C11 | BN1: C12 | BO1: C13 | BP1: C14 | BQ1: C15 | BR1: D1 | BS1: D2 | BT1: D3 | BU1: D4 | BV1: D5 | BW1: D6 | BX1: D7 | BY1: D8 | BZ1: D9 | CA1: D10 | CB1: D11
K2: 0 | L2: =-$B$15 -> -170000 | M2: =-$B$14 -> -60000 | N2: =-$B$16 -> -4200 | O2: 0 | P2: =IF($K2>MAX($C$14:$C$15),0,SUM(L2:O2)) -> -234200 | AA2: =AC2&AD2&AF2&AG2 -> Exemplo 4terminaçãoNovo Barreiro, RS42917 | AC2: =E4 -> Exemplo 4 | AD2: =E6 -> terminação | AF2: =E8 -> Novo Barreiro, RS | AG2: =E10 -> 42917 | AI2: =B4 -> 570 | AK2: =B6 -> 125 | AM2: =B7 -> 118 | AN2: =B8 -> 7 | AQ2: =B10 -> 2.92 | AR2: =B9 -> 2.08 | AU2: =B5 -> 1 | AV2: =B14 -> 60000 | AW2: =B15 -> 170000 | AX2: =B16 -> 4200 | AY2: =C14 -> 12 | AZ2: =C15 -> 25 | BA2: =E14 -> 0.055 | BB2: =G21 -> 0 | BC2: =H23 -> 12000 | BD2: =H24 -> 0 | BE2: =H25 -> 0 | BF2: =H26 -> 2400 | BH2: =H27 -> 100 | BI2: =H28 -> 400 | BJ2: =H29 -> 1800 | BK2: =H30 -> 1460 | BL2: =H31 -> 146 | BM2: =H32 -> 0 | BN2: =H33 -> 200 | BO2: =H34 -> 10620 | BP2: =H36 -> 44489.412 | BQ2: =H37 -> 0 | BR2: =B40 -> 0.216 | BS2: =B41 -> 0.0898 | BT2: =B42 -> 0.0516 | BU2: =B43 -> 0.1414 | BV2: =B44 -> 0.0453 | BW2: =B45 -> 0.1867 | BX2: =B48 -> 0.1262 | BY2: =B49 -> 0.0746 | BZ2: =B50 -> 0.0293 | CA2: =B51 -> 0.1844 | CB2: =Q1 -> 9.150957072
A3: Alojamento e desempenho | B3: Índices técnicos | D3: Caracterização | K3: 1 | L3: =IF($K3/$C$15=INT($K3/$C$15),-$B$15,0)*IF(MAX($C$14:$C$15)-$K3<$C$15,0,1) -> 0 | M3: =IF($K3/$C$14=INT($K3/$C$14),-$B$14,0)*IF(MAX($C$14:$C$15)-$K3<$C$14,0,1) -> 0 | N3: =IF($K3=MAX($C$14:$C$15),$B$16+$F$13*$B$14+$F$14*$B$15,0) -> 0 | O3: =$E$40-$E$41 -> 25983.412 | P3: =IF($K3>MAX($C$14:$C$15),0,SUM(L3:O3)) -> 25983.412
A4: Alojamento inicial (cabeças/lote) | B4: 570 | D4: Identificação da granja: | E4: Exemplo 4 | K4: 2 | L4: =IF($K4/$C$15=INT($K4/$C$15),-$B$15,0)*IF(MAX($C$14:$C$15)-$K4<$C$15,0,1) -> 0 | M4: =IF($K4/$C$14=INT($K4/$C$14),-$B$14,0)*IF(MAX($C$14:$C$15)-$K4<$C$14,0,1) -> 0 | N4: =IF($K4=MAX($C$14:$C$15),$B$16+$F$13*$B$14+$F$14*$B$15,0) -> 0 | O4: =$E$40-$E$41 -> 25983.412 | P4: =IF($K4>MAX($C$14:$C$15),0,SUM(L4:O4)) -> 25983.412
A5: Mortalidade (%) | B5: 1 | K5: 3 | L5: 0 | M5: 0 | N5: 0 | O5: 25983.412 | P5: 25983.412
A6: Peso médio de venda (kg vivo/cabeça) | B6: 125 | D6: Sistema de criação: | E6: terminação | K6: 4 | L6: 0 | M6: 0 | N6: 0 | O6: 25983.412 | P6: 25983.412
A7: Duração do lote (dias) | B7: 118 | K7: 5 | L7: 0 | M7: 0 | N7: 0 | O7: 25983.412 | P7: 25983.412
A8: Vazio sanitário (dias/lote) | B8: 7 | D8: Município e UF: | E8: Novo Barreiro, RS | K8: 6 | L8: 0 | M8: 0 | N8: 0 | O8: 25983.412 | P8: 25983.412
A9: Conversão alimentar | B9: 2.08 | K9: 7 | L9: 0 | M9: 0 | N9: 0 | O9: 25983.412 | P9: 25983.412
A10: Número de lotes por ano | B10: =ROUND((365/(B7+B8)),4) -> 2.92 | D10: Data entrega do lote: | E10: 2017-07-01 | K10: 8 | L10: 0 | M10: 0 | N10: 0 | O10: 25983.412 | P10: 25983.412
K11: 9 | L11: 0 | M11: 0 | N11: 0 | O11: 25983.412 | P11: 25983.412
F12: Valor residual (%) | G12: Depreciação (R$/ano) | H12: Custo de capital (R$/ano) | K12: 10 | L12: 0 | M12: 0 | N12: 0 | O12: 25983.412 | P12: 25983.412
A13: Investimento realizado | B13: Valor novo ou atualizado (R$) | C13: Vida útil (anos) | E13: Juros sobre capital | F13: 0.1 | G13: =IF(C14<=0,"",(B14*(1-F13))/C14) -> 4500 | H13: =-PMT($E$14,C14,B14,,0)-G13 -> 2461.753871 | K13: 11 | L13: 0 | M13: 0 | N13: 0 | O13: 25983.412 | P13: 25983.412
A14: Equipamentos | B14: 60000 | C14: 12 | E14: 0.055 | F14: 0.1 | G14: =IF(C15<=0,"",(B15*(1-F14))/C15) -> 6120 | H14: =-PMT($E$14,C15,B15,,0)-G14 -> 6553.390001 | K14: 12 | L14: 0 | M14: -60000 | N14: 0 | O14: 25983.412 | P14: -34016.588
A15: Instalações | B15: 170000 | C15: 25 | F15: 1 | G15: =IF(C15<=0,"",(B16*(1-F15))/C15) -> 0 | H15: =-PMT($E$14,C15,B16,,0)-G15 -> 313.1072824 | K15: 13 | L15: 0 | M15: 0 | N15: 0 | O15: 25983.412 | P15: 25983.412
A16: Terreno ocupado pelas instalações | B16: 4200 | G16: =SUM(G13:G15) -> 10620 | H16: =SUM(H13:H15) -> 9328.251155 | K16: 14 | L16: 0 | M16: 0 | N16: 0 | O16: 25983.412 | P16: 25983.412
A17: Total | B17: =SUM(B14:B16) -> 234200 | G17: Financiamento | H17: Unidades | K17: 15 | L17: 0 | M17: 0 | N17: 0 | O17: 25983.412 | P17: 25983.412
F18: Anual | G18: 1 | H18: R$/cab | I18: =B10*B4*(1-B5/100) -> 1647.756 | K18: 16 | L18: 0 | M18: 0 | N18: 0 | O18: 25983.412 | P18: 25983.412
A19: Financiamento | B19: Unidade | C19: Valores | F19: Trimestral | G19: 4 | H19: R$/lote | I19: =+B10 -> 2.92 | K19: 17 | L19: 0 | M19: 0 | N19: 0 | O19: 25983.412 | P19: 25983.412
A20: Valor da prestação do financiamento | B20: Anual | C20: 0 | F20: Semestral | G20: 2 | H20: R$/mês | I20: 12 | K20: 18 | L20: 0 | M20: 0 | N20: 0 | O20: 25983.412 | P20: 25983.412
G21: =+VLOOKUP(B20,F18:G20,2,FALSE)*C20 -> 0 | H21: R$/ano | I21: 1 | K21: 19 | L21: 0 | M21: 0 | N21: 0 | O21: 25983.412 | P21: 25983.412
A22: Itens de despesas | B22: Unidade | C22: Valores | G22: Itens de despesas | H22: R$/ano | K22: 20 | L22: 0 | M22: 0 | N22: 0 | O22: 25983.412 | P22: 25983.412
A23: Mão de obra familiar | B23: R$/ano | C23: 12000 | G23: Mão de obra familiar | H23: =+C23*VLOOKUP(B23,$H$18:$I$21,2,FALSE) -> 12000 | I23: Mão de obra familiar | J23: =H23 -> 12000 | K23: 21 | L23: 0 | M23: 0 | N23: 0 | O23: 25983.412 | P23: 25983.412
A24: Mão de obra contratada e encargos sociais | B24: R$/mês | C24: 0 | G24: Mão de obra contratada | H24: 0 | I24: Mão de obra contratada | J24: =SUM(H24:H25) -> 0 | K24: 22 | L24: 0 | M24: 0 | N24: 0 | O24: 25983.412 | P24: 25983.412
A25: Diaristas e prestadores de serviços | B25: R$/lote | C25: 0 | G25: Diaristas e serviços | H25: 0 | I25: Outros custos variáveis | J25: =+SUM(H26:H33) -> 6506 | K25: 23 | L25: 0 | M25: 0 | N25: 0 | O25: 25983.412 | P25: 25983.412
A26: Energia e aquecimento | B26: R$/mês | C26: 200 | G26: Energia e aquecimento | H26: 2400 | I26: Depreciação | J26: =+H34 -> 10620 | K26: 24 | L26: 0 | M26: 0 | N26: 0 | O26: 25983.412 | P26: 25983.412
A27: Tratamento, transporte e aplicação de dejetos | B27: R$/ano | C27: 100 | G27: Dejetos | H27: 100 | I27: Custo de capital | J27: =E44 -> 9328.2512 | K27: 25 | L27: 0 | M27: 0 | N27: 27200 | O27: 25983.412 | P27: 53183.412
A28: Licença ambiental | B28: R$/ano | C28: 400 | G28: Licença ambiental | H28: 400 | K28: 26 | L28: 0 | M28: 0 | N28: 0 | O28: 25983.412 | P28: 0
A29: Seguro | B29: R$/ano | C29: 1800 | G29: Seguro | H29: 1800 | K29: 27 | L29: 0 | M29: 0 | N29: 0 | O29: 25983.412 | P29: 0
A30: Manutenção | B30: R$/ano | C30: 1460 | G30: Manutenção | H30: 1460 | K30: 28 | L30: 0 | M30: 0 | N30: 0 | O30: 25983.412 | P30: 0
A31: Insumos para limpeza, desinfecção, vacinas e medicamentos | B31: R$/lote | C31: 50 | G31: Desinfetantes e medicamentos | H31: 146 | K31: 29 | L31: 0 | M31: 0 | N31: 0 | O31: 25983.412 | P31: 0
A32: Despesas administrativas | B32: R$/lote | C32: 0 | G32: Despesas administrativas | H32: 0 | K32: 30 | L32: 0 | M32: 0 | N32: 0 | O32: 25983.412 | P32: 0
A33: Outros | B33: R$/ano | C33: 200 | G33: Outros | H33: 200 | K33: 31 | L33: 0 | M33: 0 | N33: 0 | O33: 25983.412 | P33: 0
G34: Depreciação | H34: =G16 -> 10620 | K34: 32 | L34: 0 | M34: 0 | N34: 0 | O34: 25983.412 | P34: 0
A35: Itens de receita | B35: Unidade | C35: Valores | K35: 33 | L35: 0 | M35: 0 | N35: 0 | O35: 25983.412 | P35: 0
A36: Receita com a venda dos suínos terminados | B36: R$/cab | C36: 27 | G36: Receita com a venda dos suínos terminados | H36: =+C36*VLOOKUP(B36,$H$18:$I$21,2,FALSE) -> 44489.412 | K36: 34 | L36: 0 | M36: 0 | N36: 0 | O36: 25983.412 | P36: 0
A37: Receita com a venda de dejeto ou composto | B37: R$/ano | C37: 0 | G37: Receita com a venda de dejeto ou composto | H37: =+C37*VLOOKUP(B37,$H$18:$I$21,2,FALSE) -> 0 | K37: 35 | L37: 0 | M37: 0 | N37: 0 | O37: 25983.412 | P37: 0
K38: 36 | L38: 0 | M38: 0 | N38: 0 | O38: 25983.412 | P38: 0
A39: Receita bruta e custos | B39: R$/kg vivo | C39: R$/cabeça | D39: R$/lote | E39: R$/ano | K39: 37 | L39: 0 | M39: 0 | N39: 0 | O39: 25983.412 | P39: 0
A40: A - Receita bruta | B40: =ROUND(C40/$B$6,4) -> 0.216 | C40: =ROUND(D40/($B$4*(1-$B$5/100)),4) -> 27 | D40: =ROUND(E40/$B$10,4) -> 15236.1 | E40: =SUM(H36:H37) -> 44489.412 | K40: 38 | L40: 0 | M40: 0 | N40: 0 | O40: 25983.412 | P40: 0
A41: B - Custos variáveis | B41: =ROUND(C41/$B$6,4) -> 0.0898 | C41: =ROUND(D41/($B$4*(1-$B$5/100)),4) -> 11.231 | D41: 6337.6712 | E41: =SUM(H23:H33) -> 18506 | K41: 39 | L41: 0 | M41: 0 | N41: 0 | O41: 25983.412 | P41: 0
A42: C - Depreciação | B42: 0.0516 | C42: 6.4451 | D42: 3636.9863 | E42: =ROUND(H34,4) -> 10620 | K42: 40 | L42: 0 | M42: 0 | N42: 0 | O42: 25983.412 | P42: 0
A43: D - Custo operacional (B+C) | B43: 0.1414 | C43: 17.6762 | D43: 9974.6575 | E43: =SUM(E41:E42) -> 29126 | K43: 41 | L43: 0 | M43: 0 | N43: 0 | O43: 25983.412 | P43: 0
A44: ="E - Custo de capital ou retorno esperado de "&E14*100&"% ao ano" -> E - Custo de capital ou retorno esperado de 5,5% ao ano | B44: 0.0453 | C44: 5.6612 | D44: 3194.6066 | E44: =ROUND(IF(E14<=0,0,H16),4) -> 9328.2512 | K44: 42 | L44: 0 | M44: 0 | N44: 0 | O44: 25983.412 | P44: 0
A45: F - Custo total (B+C+E) | B45: 0.1867 | C45: 23.3373 | D45: 13169.2641 | E45: =SUM(E43:E44) -> 38454.2512 | K45: 43 | L45: 0 | M45: 0 | N45: 0 | O45: 25983.412 | P45: 0
K46: 44 | L46: 0 | M46: 0 | N46: 0 | O46: 25983.412 | P46: 0
A47: Resultados | B47: R$/kg vivo | C47: R$/cabeça | D47: R$/lote | E47: R$/ano | K47: 45 | L47: 0 | M47: 0 | N47: 0 | O47: 25983.412 | P47: 0
A48: G - Margem bruta: (Receita bruta - Custo variável) | B48: =+B40-B41 -> 0.1262 | C48: =+C40-C41 -> 15.769 | D48: =+D40-D41 -> 8898.4288 | E48: =E40-E41 -> 25983.412 | K48: 46 | L48: 0 | M48: 0 | N48: 0 | O48: 25983.412 | P48: 0
A49: H - Margem líquida: (Receita bruta - Custo operacional) | B49: =+B40-B43 -> 0.0746 | C49: =+C40-C43 -> 9.3238 | D49: 5261.4425 | E49: 15363.412 | K49: 47 | L49: 0 | M49: 0 | N49: 0 | O49: 25983.412 | P49: 0
A50: I - Lucro líquido: (Receita bruta - Custo total) | B50: =+B40-B45 -> 0.0293 | C50: =+C40-C45 -> 3.6627 | D50: =+D40-D45 -> 2066.8359 | E50: =E40-E45 -> 6035.1608 | K50: 48 | L50: 0 | M50: 0 | N50: 0 | O50: 25983.412 | P50: 0
A51: J - Geração de caixa (Entradas de caixa - Saídas de Caixa) | B51: =ROUND(C51/$B$6,4) -> 0.1844 | C51: =ROUND(D51/($B$4*(1-$B$5/100)),4) -> 23.0516 | D51: =E51/$B$10 -> 13008.01781 | E51: =E40-(E41-H23+G21) -> 37983.412 | K51: 49 | L51: 0 | M51: 0 | N51: 0 | O51: 25983.412 | P51: 0
G52: Matriz da Análise financeira | K52: 50 | L52: 0 | M52: 0 | N52: 0 | O52: 25983.412 | P52: 0
A53: Composição do custo total | C53: Análise do resultado | G53: =IF(AND(E51<0,E40<E43),"Pior resultado possível! A receita bruta não cobre o custo operacional e a geração de caixa é negativa.","") ->  | H53: =IF(AND(E51>0,E40<E43),"Resultado ruim, mas honrando os compromissos financeiros. A receita bruta não cobre o custo operacional, mas a geração de caixa é positiva.","") ->  | K53: 51 | L53: 0 | M53: 0 | N53: 0 | O53: 25983.412 | P53: 0
K54: 52 | L54: 0 | M54: 0 | N54: 0 | O54: 25983.412 | P54: 0
C55: =G53&H53&G57&H57&G64&H64 -> Melhor resultado possível! A receita bruta atende a expectativa de retorno sobre o investimento de 5,5% ao ano e a geração de caixa é positiva. | K55: 53 | L55: 0 | M55: 0 | N55: 0 | O55: 25983.412 | P55: 0
K56: 54 | L56: 0 | M56: 0 | N56: 0 | O56: 25983.412 | P56: 0
G57: =IF(AND(E51<0,E40>=E43,E40<E45),"Resultado abaixo do esperado e com problemas para honrar os compromissos financeiros. A receita bruta cobre o custo operacional, mas não atende a expectativa de retorno sobre o investimento de "&$E$14*100&"% ao ano. Além disso, a geração de caixa é negativa.","") ->  | H57: =IF(AND(E51>=0,E40>=E43,E40<E45),"Resultado abaixo do esperado, mas honrando os compromissos financeiros. A receita bruta cobre o custo operacional, mas não atende a expectativa de retorno sobre o investimento de "&$E$14*100&"% ao ano. Entretanto, a geração de caixa é positiva.","") ->  | K57: 55 | L57: 0 | M57: 0 | N57: 0 | O57: 25983.412 | P57: 0
K58: 56 | L58: 0 | M58: 0 | N58: 0 | O58: 25983.412 | P58: 0
K59: 57 | L59: 0 | M59: 0 | N59: 0 | O59: 25983.412 | P59: 0
K60: 58 | L60: 0 | M60: 0 | N60: 0 | O60: 25983.412 | P60: 0
K61: 59 | L61: 0 | M61: 0 | N61: 0 | O61: 25983.412 | P61: 0
K62: 60 | L62: 0 | M62: 0 | N62: 0 | O62: 25983.412 | P62: 0
K63: 61 | L63: 0 | M63: 0 | N63: 0 | O63: 25983.412 | P63: 0
G64: =IF(AND(E51<0,E40>=E45),"Resultado acima do esperado mas com problemas para honrar os compromissos financeiros. A receita bruta atende a expectativa de retorno sobre o investimento de "&$E$14*100&"% ao ano. Entretanto, a geração de caixa é negativa.","") ->  | H64: =IF(AND(E51>=0,E40>=E45),"Melhor resultado possível! A receita bruta atende a expectativa de retorno sobre o investimento de "&$E$14*100&"% ao ano e a geração de caixa é positiva.","") -> Melhor resultado possível! A receita bruta atende a expectativa de retorno sobre o investimento de 5,5% ao ano e a geração de caixa é positiva. | K64: 62 | L64: 0 | M64: 0 | N64: 0 | O64: 25983.412 | P64: 0
K65: 63 | L65: 0 | M65: 0 | N65: 0 | O65: 25983.412 | P65: 0
K66: 64 | L66: 0 | M66: 0 | N66: 0 | O66: 25983.412 | P66: 0
K67: 65 | L67: 0 | M67: 0 | N67: 0 | O67: 25983.412 | P67: 0
C68: =IF(P3<0,"","A Taxa Interna de Retorno (TIR) do investimento foi estimada em "&TRUNC(Q1,1)&"% ao ano.") -> A Taxa Interna de Retorno (TIR) do investimento foi estimada em 9,1% ao ano. | K68: 66 | L68: =IF($K68/$C$15=INT($K68/$C$15),-$B$15,0)*IF(MAX($C$14:$C$15)-$K68<$C$15,0,1) -> 0 | M68: =IF($K68/$C$14=INT($K68/$C$14),-$B$14,0)*IF(MAX($C$14:$C$15)-$K68<$C$14,0,1) -> 0 | N68: =IF($K68=MAX($C$14:$C$15),$B$16+$F$13*$B$14+$F$14*$B$15,0) -> 0 | O68: =$E$40-$E$41 -> 25983.412 | P68: =IF($K68>MAX($C$14:$C$15),0,SUM(L68:O68)) -> 0
K69: 67 | L69: 0 | M69: 0 | N69: 0 | O69: 25983.412 | P69: 0
K70: 68 | L70: 0 | M70: 0 | N70: 0 | O70: 25983.412 | P70: 0
K71: 69 | L71: 0 | M71: 0 | N71: 0 | O71: 25983.412 | P71: 0
K72: 70 | L72: 0 | M72: 0 | N72: 0 | O72: 25983.412 | P72: 0
K73: 71 | L73: 0 | M73: 0 | N73: 0 | O73: 25983.412 | P73: 0
K74: 72 | L74: 0 | M74: 0 | N74: 0 | O74: 25983.412 | P74: 0
K75: 73 | L75: 0 | M75: 0 | N75: 0 | O75: 25983.412 | P75: 0
K76: 74 | L76: 0 | M76: 0 | N76: 0 | O76: 25983.412 | P76: 0
A77: Mão de obra familiar | B77: =+J23 -> 12000 | K77: 75 | L77: 0 | M77: 0 | N77: 0 | O77: 25983.412 | P77: 0
A78: Mão de obra contratada | B78: =+J24 -> 0 | K78: 76 | L78: 0 | M78: 0 | N78: 0 | O78: 25983.412 | P78: 0
A79: Outros custos variáveis | B79: 6506 | K79: 77 | L79: 0 | M79: 0 | N79: 0 | O79: 25983.412 | P79: 0
A80: Depreciação | B80: 10620 | K80: 78 | L80: 0 | M80: 0 | N80: 0 | O80: 25983.412 | P80: 0
A81: Custo de capital | B81: 9328.2512 | K81: 79 | L81: 0 | M81: 0 | N81: 0 | O81: 25983.412 | P81: 0
K82: 80 | L82: 0 | M82: 0 | N82: 0 | O82: 25983.412 | P82: 0
K83: 81 | L83: 0 | M83: 0 | N83: 0 | O83: 25983.412 | P83: 0
K84: 82 | L84: 0 | M84: 0 | N84: 0 | O84: 25983.412 | P84: 0
K85: 83 | L85: 0 | M85: 0 | N85: 0 | O85: 25983.412 | P85: 0
K86: 84 | L86: 0 | M86: 0 | N86: 0 | O86: 25983.412 | P86: 0
K87: 85 | L87: 0 | M87: 0 | N87: 0 | O87: 25983.412 | P87: 0
K88: 86 | L88: 0 | M88: 0 | N88: 0 | O88: 25983.412 | P88: 0
K89: 87 | L89: 0 | M89: 0 | N89: 0 | O89: 25983.412 | P89: 0
K90: 88 | L90: 0 | M90: 0 | N90: 0 | O90: 25983.412 | P90: 0
K91: 89 | L91: 0 | M91: 0 | N91: 0 | O91: 25983.412 | P91: 0
K92: 90 | L92: 0 | M92: 0 | N92: 0 | O92: 25983.412 | P92: 0
K93: 91 | L93: 0 | M93: 0 | N93: 0 | O93: 25983.412 | P93: 0
K94: 92 | L94: 0 | M94: 0 | N94: 0 | O94: 25983.412 | P94: 0
K95: 93 | L95: 0 | M95: 0 | N95: 0 | O95: 25983.412 | P95: 0
K96: 94 | L96: 0 | M96: 0 | N96: 0 | O96: 25983.412 | P96: 0
K97: 95 | L97: 0 | M97: 0 | N97: 0 | O97: 25983.412 | P97: 0
K98: 96 | L98: 0 | M98: 0 | N98: 0 | O98: 25983.412 | P98: 0
K99: 97 | L99: 0 | M99: 0 | N99: 0 | O99: 25983.412 | P99: 0
K100: 98 | L100: 0 | M100: 0 | N100: 0 | O100: 25983.412 | P100: 0
K101: 99 | L101: 0 | M101: 0 | N101: 0 | O101: 25983.412 | P101: 0
L102: x | M102: x | N102: x | O102: x | P102: x

Sheet Wean to Finish
A1: CÁLCULO SIMPLIFICADO DO CUSTO DE PRODUÇÃO DE SUÍNOS EM WEAN TO FINISH COM CONTRATO DE PARCERIA | K1: Ano | L1: Instalações | M1: Equipametos | N1: Terreno e valor residual | O1: Margem bruta (MB) | P1: Entradas Líquidas de Caixa ( | Q1: =IRR(P2:P102,)*100 -> 5.633855581 | AA1: CHAVE | AB1: VERIFICADOR | AC1: A1 | AD1: A2 | AE1: A3 | AF1: A4 | AG1: A5 | AH1: A6 | AI1: A7 | AJ1: A8 | AK1: A9 | AL1: A10 | AM1: A11 | AN1: A12 | AO1: A13 | AP1: A14 | AQ1: A15 | AR1: A16 | AS1: A17 | AT1: A18 | AU1: A19 | AV1: B1 | AW1: B2 | AX1: B3 | AY1: B4 | AZ1: B5 | BA1: B6 | BB1: B7 | BC1: C1 | BD1: C2 | BE1: C3 | BF1: C4 | BG1: C5 | BH1: C6 | BI1: C7 | BJ1: C8 | BK1: C9 | BL1: C10 | BM1: C11 | BN1: C12 | BO1: C13 | BP1: C14 | BQ1: C15 | BR1: D1 | BS1: D2 | BT1: D3 | BU1: D4 | BV1: D5 | BW1: D6 | BX1: D7 | BY1: D8 | BZ1: D9 | CA1: D10 | CB1: D11
K2: 0 | L2: =-$B$14 -> -1028492 | M2: =-$B$13 -> -245910 | N2: =-$B$15 -> -25000 | O2: 0 | P2: =IF($K2>MAX($C$13:$C$14),0,SUM(L2:O2)) -> -1299402 | AA2: =AC2&AD2&AF2&AG2 -> Exemplo 5wean to finishEntre Rios, SC41579 | AC2: =E4 -> Exemplo 5 | AD2: =E6 -> wean to finish | AF2: =E7 -> Entre Rios, SC | AG2: =E9 -> 41579 | AI2: =B4 -> 4390 | AK2: =B6 -> 119.8 | AM2: =B7 -> 158 | AN2: =B8 -> 25 | AQ2: =B10 -> 1.994535519 | AR2: =B9 -> 2.47 | AU2: =B5 -> 4.7 | AV2: =B13 -> 245910 | AW2: =B14 -> 1028492 | AX2: =B15 -> 25000 | AY2: =C13 -> 12 | AZ2: =C14 -> 25 | BA2: =E13 -> 0.06 | BB2: =G20 -> 170000 | BC2: =H22 -> 62942 | BD2: =H23 -> 34800 | BE2: =H24 -> 7898.360656 | BF2: =H25 -> 70620 | BH2: =H26 -> 0 | BI2: =H27 -> 2810 | BJ2: =H28 -> 3300 | BK2: =H29 -> 9996 | BL2: =H30 -> 1754 | BM2: =H31 -> 120 | BN2: =H32 -> 7000 | BO2: =H33 -> 55468.962 | BP2: =H35 -> 306075.4683 | BQ2: =H36 -> 0 | BR2: =B39 -> 0.3062 | BS2: =B40 -> 0.2013 | BT2: =B41 -> 0.0555 | BU2: =B42 -> 0.2568 | BV2: =B43 -> 0.0563 | BW2: =B44 -> 0.3131 | BX2: =B47 -> 0.1049 | BY2: =B48 -> 0.0494 | BZ2: =B49 -> -0.0069 | CA2: =B50 -> -0.0022 | CB2: =Q1 -> 5.633855581
A3: Alojamento e desempenho | B3: Índices técnicos | D3: Caracterização | K3: 1 | L3: =IF($K3/$C$14=INT($K3/$C$14),-$B$14,0)*IF(MAX($C$13:$C$14)-$K3<$C$14,0,1) -> 0 | M3: =IF($K3/$C$13=INT($K3/$C$13),-$B$13,0)*IF(MAX($C$13:$C$14)-$K3<$C$13,0,1) -> 0 | N3: =IF($K3=MAX($C$13:$C$14),$B$15+$F$12*$B$13+$F$13*$B$14,0) -> 0 | O3: =$E$39-$E$40 -> 104835.1076 | P3: =IF($K3>MAX($C$13:$C$14),0,SUM(L3:O3)) -> 104835.1076
A4: Alojamento inicial (cabeças/lote) | B4: 4390 | D4: Identificação da granja: | E4: Exemplo 5 | K4: 2 | L4: =IF($K4/$C$14=INT($K4/$C$14),-$B$14,0)*IF(MAX($C$13:$C$14)-$K4<$C$14,0,1) -> 0 | M4: =IF($K4/$C$13=INT($K4/$C$13),-$B$13,0)*IF(MAX($C$13:$C$14)-$K4<$C$13,0,1) -> 0 | N4: =IF($K4=MAX($C$13:$C$14),$B$15+$F$12*$B$13+$F$13*$B$14,0) -> 0 | O4: =$E$39-$E$40 -> 104835.1076 | P4: =IF($K4>MAX($C$13:$C$14),0,SUM(L4:O4)) -> 104835.1076
A5: Mortalidade (%) | B5: 4.7 | K5: 3 | L5: 0 | M5: 0 | N5: 0 | O5: 104835.1076 | P5: 104835.1076
A6: Peso médio de venda (kg vivo/cabeça) | B6: 119.8 | D6: Sistema de criação: | E6: wean to finish | K6: 4 | L6: 0 | M6: 0 | N6: 0 | O6: 104835.1076 | P6: 104835.1076
A7: Duração do lote (dias) | B7: 158 | D7: Município e UF: | E7: Entre Rios, SC | K7: 5 | L7: 0 | M7: 0 | N7: 0 | O7: 104835.1076 | P7: 104835.1076
A8: Vazio sanitário (dias/lote) | B8: 25 | K8: 6 | L8: 0 | M8: 0 | N8: 0 | O8: 104835.1076 | P8: 104835.1076
A9: Conversão alimentar | B9: 2.47 | D9: Data entrega do lote: | E9: 2013-11-01 | K9: 7 | L9: 0 | M9: 0 | N9: 0 | O9: 104835.1076 | P9: 104835.1076
A10: Número de lotes por ano | B10: =(365/(B7+B8)) -> 1.994535519 | K10: 8 | L10: 0 | M10: 0 | N10: 0 | O10: 104835.1076 | P10: 104835.1076
F11: Valor residual (%) | G11: Depreciação (R$/ano) | H11: Custo de capital (R$/ano) | K11: 9 | L11: 0 | M11: 0 | N11: 0 | O11: 104835.1076 | P11: 104835.1076
A12: Investimento realizado | B12: Valor novo ou atualizado (R$) | C12: Vida útil (anos) | E12: Juros sobre capital | F12: 0.1 | G12: =IF(C13<=0,"",(B13*(1-F12))/C13) -> 18443.25 | H12: =-PMT($E$13,C13,B13,,0)-G12 -> 10888.16429 | K12: 10 | L12: 0 | M12: 0 | N12: 0 | O12: 104835.1076 | P12: 104835.1076
A13: Equipamentos | B13: 245910 | C13: 12 | E13: 0.06 | F13: 0.1 | G13: =IF(C14<=0,"",(B14*(1-F13))/C14) -> 37025.712 | H13: =-PMT($E$13,C14,B14,,0)-G13 -> 43429.84187 | K13: 11 | L13: 0 | M13: 0 | N13: 0 | O13: 104835.1076 | P13: 104835.1076
A14: Instalações | B14: 1028492 | C14: 25 | F14: 1 | G14: =IF(C14<=0,"",(B15*(1-F14))/C14) -> 0 | H14: =-PMT($E$13,C14,B15,,0)-G14 -> 1955.667955 | K14: 12 | L14: 0 | M14: -245910 | N14: 0 | O14: 104835.1076 | P14: -141074.8924
A15: Terreno ocupado pelas instalações | B15: 25000 | G15: =SUM(G12:G14) -> 55468.962 | H15: =SUM(H12:H14) -> 56273.67412 | K15: 13 | L15: 0 | M15: 0 | N15: 0 | O15: 104835.1076 | P15: 104835.1076
A16: Total | B16: =SUM(B13:B15) -> 1299402 | G16: Financiamento | H16: Unidades | K16: 14 | L16: 0 | M16: 0 | N16: 0 | O16: 104835.1076 | P16: 104835.1076
F17: Anual | G17: 1 | H17: R$/cab | I17: =+B10*B4*(1-B5/100) -> 8344.478415 | K17: 15 | L17: 0 | M17: 0 | N17: 0 | O17: 104835.1076 | P17: 104835.1076
A18: Financiamento | B18: Unidade | C18: Valores | F18: Trimestral | G18: 4 | H18: R$/lote | I18: =+B10 -> 1.994535519 | K18: 16 | L18: 0 | M18: 0 | N18: 0 | O18: 104835.1076 | P18: 104835.1076
A19: Valor da prestação do financiamento | B19: Semestral | C19: 85000 | F19: Semestral | G19: 2 | H19: R$/mês | I19: 12 | K19: 17 | L19: 0 | M19: 0 | N19: 0 | O19: 104835.1076 | P19: 104835.1076
G20: =+VLOOKUP(B19,F17:G19,2,FALSE)*C19 -> 170000 | H20: R$/ano | I20: 1 | K20: 18 | L20: 0 | M20: 0 | N20: 0 | O20: 104835.1076 | P20: 104835.1076
A21: Itens de despesas | B21: Unidade | C21: Valores | G21: Itens de despesas | H21: R$/ano | K21: 19 | L21: 0 | M21: 0 | N21: 0 | O21: 104835.1076 | P21: 104835.1076
A22: Mão de obra familiar | B22: R$/ano | C22: 62942 | G22: Mão de obra familiar | H22: =+C22*VLOOKUP(B22,$H$17:$I$20,2,FALSE) -> 62942 | I22: Mão de obra familiar | J22: =H22 -> 62942 | K22: 20 | L22: 0 | M22: 0 | N22: 0 | O22: 104835.1076 | P22: 104835.1076
A23: Mão de obra contratada e encargos sociais | B23: R$/mês | C23: 2900 | G23: Mão de obra contratada | H23: 34800 | I23: Mão de obra contratada | J23: =SUM(H23:H24) -> 42698.36066 | K23: 21 | L23: 0 | M23: 0 | N23: 0 | O23: 104835.1076 | P23: 104835.1076
A24: Diaristas e prestadores de serviços | B24: R$/lote | C24: 3960 | G24: Diaristas e serviços | H24: 7898.360656 | I24: Outros custos variáveis | J24: =+SUM(H25:H32) -> 95600 | K24: 22 | L24: 0 | M24: 0 | N24: 0 | O24: 104835.1076 | P24: 104835.1076
A25: Energia e aquecimento | B25: R$/mês | C25: 5885 | G25: Energia e aquecimento | H25: 70620 | I25: Depreciação | J25: =+H33 -> 55468.962 | K25: 23 | L25: 0 | M25: 0 | N25: 0 | O25: 104835.1076 | P25: 104835.1076
A26: Tratamento, transporte e aplicação de dejetos | B26: R$/ano | C26: 0 | G26: Dejetos | H26: 0 | I26: Custo de capital | J26: =E43 -> 56273.67412 | K26: 24 | L26: 0 | M26: 0 | N26: 0 | O26: 104835.1076 | P26: 104835.1076
A27: Licença ambiental | B27: R$/ano | C27: 2810 | G27: Licença ambiental | H27: 2810 | K27: 25 | L27: 0 | M27: 0 | N27: 152440.2 | O27: 104835.1076 | P27: 257275.3076
A28: Seguro | B28: R$/ano | C28: 3300 | G28: Seguro | H28: 3300 | K28: 26 | L28: 0 | M28: 0 | N28: 0 | O28: 104835.1076 | P28: 0
A29: Manutenção | B29: R$/mês | C29: 833 | G29: Manutenção | H29: 9996 | K29: 27 | L29: 0 | M29: 0 | N29: 0 | O29: 104835.1076 | P29: 0
A30: Insumos para limpeza, desinfecção, vacinas e medicamentos | B30: R$/ano | C30: 1754 | G30: Desinfetantes e medicamentos | H30: 1754 | K30: 28 | L30: 0 | M30: 0 | N30: 0 | O30: 104835.1076 | P30: 0
A31: Despesas administrativas | B31: R$/ano | C31: 120 | G31: Despesas administrativas | H31: 120 | K31: 29 | L31: 0 | M31: 0 | N31: 0 | O31: 104835.1076 | P31: 0
A32: Outros | B32: R$/ano | C32: 7000 | G32: Outros | H32: 7000 | K32: 30 | L32: 0 | M32: 0 | N32: 0 | O32: 104835.1076 | P32: 0
G33: Depreciação | H33: =G15 -> 55468.962 | K33: 31 | L33: 0 | M33: 0 | N33: 0 | O33: 104835.1076 | P33: 0
A34: Itens de receita | B34: Unidade | C34: Valores | K34: 32 | L34: 0 | M34: 0 | N34: 0 | O34: 104835.1076 | P34: 0
A35: Receita com a venda dos suínos terminados | B35: R$/cab | C35: 36.68 | G35: Receita com a venda dos leitões ou suínos terminados | H35: =+C35*VLOOKUP(B35,$H$17:$I$20,2,FALSE) -> 306075.4683 | K35: 33 | L35: 0 | M35: 0 | N35: 0 | O35: 104835.1076 | P35: 0
A36: Receita com a venda de dejeto ou composto | B36: R$/ano | C36: 0 | G36: Receita com a venda de dejeto ou composto | H36: =+C36*VLOOKUP(B36,$H$17:$I$20,2,FALSE) -> 0 | K36: 34 | L36: 0 | M36: 0 | N36: 0 | O36: 104835.1076 | P36: 0
K37: 35 | L37: 0 | M37: 0 | N37: 0 | O37: 104835.1076 | P37: 0
A38: Receita bruta e custos | B38: R$/kg vivo | C38: R$/cabeça | D38: R$/lote | E38: R$/ano | K38: 36 | L38: 0 | M38: 0 | N38: 0 | O38: 104835.1076 | P38: 0
A39: A - Receita bruta | B39: =ROUND(C39/$B$6,4) -> 0.3062 | C39: =ROUND(D39/($B$4*(1-$B$5/100)),4) -> 36.68 | D39: =E39/$B$10 -> 153457.0156 | E39: =SUM(H35:H36) -> 306075.4683 | K39: 37 | L39: 0 | M39: 0 | N39: 0 | O39: 104835.1076 | P39: 0
A40: B - Custos variáveis | B40: =ROUND(C40/$B$6,4) -> 0.2013 | C40: =ROUND(D40/($B$4*(1-$B$5/100)),4) -> 24.1166 | D40: =E40/$B$10 -> 100895.8521 | E40: =SUM(H22:H32) -> 201240.3607 | K40: 38 | L40: 0 | M40: 0 | N40: 0 | O40: 104835.1076 | P40: 0
A41: C - Depreciação | B41: =ROUND(C41/$B$6,4) -> 0.0555 | C41: =ROUND(D41/($B$4*(1-$B$5/100)),4) -> 6.6474 | D41: =E41/$B$10 -> 27810.46588 | E41: =G15 -> 55468.962 | K41: 39 | L41: 0 | M41: 0 | N41: 0 | O41: 104835.1076 | P41: 0
A42: D - Custo operacional (B+C) | B42: =SUM(B40:B41) -> 0.2568 | C42: =SUM(C40:C41) -> 30.764 | D42: 128706.3179 | E42: =SUM(E40:E41) -> 256709.3227 | K42: 40 | L42: 0 | M42: 0 | N42: 0 | O42: 104835.1076 | P42: 0
A43: ="E - Custo de capital ou retorno esperado de "&E13*100&"% ao ano" -> E - Custo de capital ou retorno esperado de 6% ao ano | B43: =ROUND(C43/$B$6,4) -> 0.0563 | C43: =ROUND(D43/($B$4*(1-$B$5/100)),4) -> 6.7438 | D43: =E43/$B$10 -> 28213.92428 | E43: =IF(E13<=0,0,H15) -> 56273.67412 | K43: 41 | L43: 0 | M43: 0 | N43: 0 | O43: 104835.1076 | P43: 0
A44: F - Custo total (B+C+E) | B44: =SUM(B42:B43) -> 0.3131 | C44: =SUM(C42:C43) -> 37.5078 | D44: =SUM(D42:D43) -> 156920.2422 | E44: =SUM(E42:E43) -> 312982.9968 | K44: 42 | L44: 0 | M44: 0 | N44: 0 | O44: 104835.1076 | P44: 0
K45: 43 | L45: 0 | M45: 0 | N45: 0 | O45: 104835.1076 | P45: 0
A46: Resultados | B46: R$/kg vivo | C46: R$/cabeça | D46: R$/lote | E46: R$/ano | K46: 44 | L46: 0 | M46: 0 | N46: 0 | O46: 104835.1076 | P46: 0
A47: G - Margem bruta: (Receita bruta - Custo variável) | B47: =+B39-B40 -> 0.1049 | C47: =+C39-C40 -> 12.5634 | D47: =+D39-D40 -> 52561.16355 | E47: =E39-E40 -> 104835.1076 | K47: 45 | L47: 0 | M47: 0 | N47: 0 | O47: 104835.1076 | P47: 0
A48: H - Margem líquida: (Receita bruta - Custo operacional) | B48: =+B39-B42 -> 0.0494 | C48: =+C39-C42 -> 5.916 | D48: 24750.69767 | E48: 49366.14562 | K48: 46 | L48: 0 | M48: 0 | N48: 0 | O48: 104835.1076 | P48: 0
A49: I - Lucro líquido: (Receita bruta - Custo total) | B49: =+B39-B44 -> -0.0069 | C49: =+C39-C44 -> -0.8278 | D49: =+D39-D44 -> -3463.226618 | E49: =E39-E44 -> -6907.5285 | K49: 47 | L49: 0 | M49: 0 | N49: 0 | O49: 104835.1076 | P49: 0
A50: J - Geração de caixa (Entradas de caixa - Saídas de Caixa) | B50: =ROUND(C50/$B$6,4) -> -0.0022 | C50: =ROUND(D50/($B$4*(1-($B$5/100))),4) -> -0.2664 | D50: =E50/$B$10 -> -1114.491249 | E50: =E39-(E40-H22+G20) -> -2222.892383 | K50: 48 | L50: 0 | M50: 0 | N50: 0 | O50: 104835.1076 | P50: 0
G51: Matriz da Análise financeira | K51: 49 | L51: 0 | M51: 0 | N51: 0 | O51: 104835.1076 | P51: 0
A52: Composição do custo total | C52: Análise do resultado | G52: =IF(AND(E50<0,E39<E42),"Pior resultado possível! A receita bruta não cobre o custo operacional e a geração de caixa é negativa.","") ->  | H52: =IF(AND(E50>0,E39<E42),"Resultado ruim, mas honrando os compromissos financeiros. A receita bruta não cobre o custo operacional, mas a geração de caixa é positiva.","") ->  | K52: 50 | L52: 0 | M52: 0 | N52: 0 | O52: 104835.1076 | P52: 0
K53: 51 | L53: 0 | M53: 0 | N53: 0 | O53: 104835.1076 | P53: 0
C54: =G52&H52&G56&H56&G63&H63 -> Resultado abaixo do esperado e com problemas para honrar os compromissos financeiros. A receita bruta cobre o custo operacional, mas não atende a expectativa de retorno sobre o investimento de 6% ao ano. Além disso, a geração de caixa é negativa. | K54: 52 | L54: 0 | M54: 0 | N54: 0 | O54: 104835.1076 | P54: 0
K55: 53 | L55: 0 | M55: 0 | N55: 0 | O55: 104835.1076 | P55: 0
G56: =IF(AND(E50<0,E39>=E42,E39<E44),"Resultado abaixo do esperado e com problemas para honrar os compromissos financeiros. A receita bruta cobre o custo operacional, mas não atende a expectativa de retorno sobre o investimento de "&$E$13*100&"% ao ano. Além disso, a geração de caixa é negativa.","") -> Resultado abaixo do esperado e com problemas para honrar os compromissos financeiros. A receita bruta cobre o custo operacional, mas não atende a expectativa de retorno sobre o investimento de 6% ao ano. Além disso, a geração de caixa é negativa. | H56: =IF(AND(E50>=0,E39>=E42,E39<E44),"Resultado abaixo do esperado, mas honrando os compromissos financeiros. A receita bruta cobre o custo operacional, mas não atende a expectativa de retorno sobre o investimento de "&$E$13*100&"% ao ano. Entretanto, a geração de caixa é positiva.","") ->  | K56: 54 | L56: 0 | M56: 0 | N56: 0 | O56: 104835.1076 | P56: 0
K57: 55 | L57: 0 | M57: 0 | N57: 0 | O57: 104835.1076 | P57: 0
K58: 56 | L58: 0 | M58: 0 | N58: 0 | O58: 104835.1076 | P58: 0
K59: 57 | L59: 0 | M59: 0 | N59: 0 | O59: 104835.1076 | P59: 0
K60: 58 | L60: 0 | M60: 0 | N60: 0 | O60: 104835.1076 | P60: 0
K61: 59 | L61: 0 | M61: 0 | N61: 0 | O61: 104835.1076 | P61: 0
K62: 60 | L62: 0 | M62: 0 | N62: 0 | O62: 104835.1076 | P62: 0
G63: =IF(AND(E50<0,E39>=E44),"Resultado acima do esperado mas com problemas para honrar os compromissos financeiros. A receita bruta atende a expectativa de retorno sobre o investimento de "&$E$13*100&"% ao ano. Entretanto, a geração de caixa é negativa.","") ->  | H63: =IF(AND(E50>=0,E39>=E44),"Melhor resultado possível! A receita bruta atende a expectativa de retorno sobre o investimento de "&$E$13*100&"% ao ano e a geração de caixa é positiva.","") ->  | K63: 61 | L63: 0 | M63: 0 | N63: 0 | O63: 104835.1076 | P63: 0
K64: 62 | L64: 0 | M64: 0 | N64: 0 | O64: 104835.1076 | P64: 0
K65: 63 | L65: 0 | M65: 0 | N65: 0 | O65: 104835.1076 | P65: 0
K66: 64 | L66: 0 | M66: 0 | N66: 0 | O66: 104835.1076 | P66: 0
C67: =IF(P3<0,"","A Taxa Interna de Retorno (TIR) do investimento foi estimada em "&TRUNC(Q1,1)&"% ao ano.") -> A Taxa Interna de Retorno (TIR) do investimento foi estimada em 5,6% ao ano. | K67: 65 | L67: 0 | M67: 0 | N67: 0 | O67: 104835.1076 | P67: 0
K68: 66 | L68: =IF($K68/$C$14=INT($K68/$C$14),-$B$14,0)*IF(MAX($C$13:$C$14)-$K68<$C$14,0,1) -> 0 | M68: =IF($K68/$C$13=INT($K68/$C$13),-$B$13,0)*IF(MAX($C$13:$C$14)-$K68<$C$13,0,1) -> 0 | N68: =IF($K68=MAX($C$13:$C$14),$B$15+$F$12*$B$13+$F$13*$B$14,0) -> 0 | O68: =$E$39-$E$40 -> 104835.1076 | P68: =IF($K68>MAX($C$13:$C$14),0,SUM(L68:O68)) -> 0
K69: 67 | L69: 0 | M69: 0 | N69: 0 | O69: 104835.1076 | P69: 0
K70: 68 | L70: 0 | M70: 0 | N70: 0 | O70: 104835.1076 | P70: 0
K71: 69 | L71: 0 | M71: 0 | N71: 0 | O71: 104835.1076 | P71: 0
K72: 70 | L72: 0 | M72: 0 | N72: 0 | O72: 104835.1076 | P72: 0
K73: 71 | L73: 0 | M73: 0 | N73: 0 | O73: 104835.1076 | P73: 0
K74: 72 | L74: 0 | M74: 0 | N74: 0 | O74: 104835.1076 | P74: 0
K75: 73 | L75: 0 | M75: 0 | N75: 0 | O75: 104835.1076 | P75: 0
K76: 74 | L76: 0 | M76: 0 | N76: 0 | O76: 104835.1076 | P76: 0
A77: Mão de obra familiar | B77: =+J22 -> 62942 | K77: 75 | L77: 0 | M77: 0 | N77: 0 | O77: 104835.1076 | P77: 0
A78: Mão de obra contratada | B78: =+J23 -> 42698.36066 | K78: 76 | L78: 0 | M78: 0 | N78: 0 | O78: 104835.1076 | P78: 0
A79: Outros custos variáveis | B79: 95600 | K79: 77 | L79: 0 | M79: 0 | N79: 0 | O79: 104835.1076 | P79: 0
A80: Depreciação | B80: 55468.962 | K80: 78 | L80: 0 | M80: 0 | N80: 0 | O80: 104835.1076 | P80: 0
A81: Custo de capital | B81: 56273.67412 | K81: 79 | L81: 0 | M81: 0 | N81: 0 | O81: 104835.1076 | P81: 0
K82: 80 | L82: 0 | M82: 0 | N82: 0 | O82: 104835.1076 | P82: 0
K83: 81 | L83: 0 | M83: 0 | N83: 0 | O83: 104835.1076 | P83: 0
K84: 82 | L84: 0 | M84: 0 | N84: 0 | O84: 104835.1076 | P84: 0
K85: 83 | L85: 0 | M85: 0 | N85: 0 | O85: 104835.1076 | P85: 0
K86: 84 | L86: 0 | M86: 0 | N86: 0 | O86: 104835.1076 | P86: 0
K87: 85 | L87: 0 | M87: 0 | N87: 0 | O87: 104835.1076 | P87: 0
K88: 86 | L88: 0 | M88: 0 | N88: 0 | O88: 104835.1076 | P88: 0
K89: 87 | L89: 0 | M89: 0 | N89: 0 | O89: 104835.1076 | P89: 0
K90: 88 | L90: 0 | M90: 0 | N90: 0 | O90: 104835.1076 | P90: 0
K91: 89 | L91: 0 | M91: 0 | N91: 0 | O91: 104835.1076 | P91: 0
K92: 90 | L92: 0 | M92: 0 | N92: 0 | O92: 104835.1076 | P92: 0
K93: 91 | L93: 0 | M93: 0 | N93: 0 | O93: 104835.1076 | P93: 0
K94: 92 | L94: 0 | M94: 0 | N94: 0 | O94: 104835.1076 | P94: 0
K95: 93 | L95: 0 | M95: 0 | N95: 0 | O95: 104835.1076 | P95: 0
K96: 94 | L96: 0 | M96: 0 | N96: 0 | O96: 104835.1076 | P96: 0
K97: 95 | L97: 0 | M97: 0 | N97: 0 | O97: 104835.1076 | P97: 0
K98: 96 | L98: 0 | M98: 0 | N98: 0 | O98: 104835.1076 | P98: 0
K99: 97 | L99: 0 | M99: 0 | N99: 0 | O99: 104835.1076 | P99: 0
K100: 98 | L100: 0 | M100: 0 | N100: 0 | O100: 104835.1076 | P100: 0
K101: 99 | L101: 0 | M101: 0 | N101: 0 | O101: 104835.1076 | P101: 0
K102: 100 | L102: 0 | M102: 0 | N102: 0 | O102: 104835.1076 | P102: 0
L103: x | M103: x | N103: x | O103: x | P103: x

Sheet Frango de corte
A1: CÁLCULO SIMPLIFICADO DO CUSTO DE PRODUÇÃO DE FRANGOS DE CORTE COM CONTRATO DE PARCERIA | K1: Ano | L1: Instalações | M1: Equipametos | N1: Terreno e valor residual | O1: Margem bruta (MB) | P1: Entradas Líquidas de Caixa ( | Q1: =IRR(P2:P102,)*100 -> -0.2653472941 | AA1: CHAVE | AB1: VERIFICADOR | AC1: A1 | AD1: A2 | AE1: A3 | AF1: A4 | AG1: A5 | AH1: A6 | AI1: A7 | AJ1: A8 | AK1: A9 | AL1: A10 | AM1: A11 | AN1: A12 | AO1: A13 | AP1: A14 | AQ1: A15 | AR1: A16 | AS1: A17 | AT1: A18 | AU1: A19 | AV1: B1 | AW1: B2 | AX1: B3 | AY1: B4 | AZ1: B5 | BA1: B6 | BB1: B7 | BC1: C1 | BD1: C2 | BE1: C3 | BF1: C4 | BG1: C5 | BH1: C6 | BI1: C7 | BJ1: C8 | BK1: C9 | BL1: C10 | BM1: C11 | BN1: C12 | BO1: C13 | BP1: C14 | BQ1: C15 | BR1: D1 | BS1: D2 | BT1: D3 | BU1: D4 | BV1: D5 | BW1: D6 | BX1: D7 | BY1: D8 | BZ1: D9 | CA1: D10 | CB1: D11
K2: 0 | L2: =-$B$16 -> -130000 | M2: =-$B$15 -> -141000 | N2: =-$B$17 -> -5000 | O2: 0 | P2: =IF($K2>MAX($C$15:$C$16),0,SUM(L2:O2)) -> -276000 | AA2: =AC2&AD2&AF2&AG2 -> Exemplo 6climatizado pressão positivaChapecó, SC42278 | AC2: =E4 -> Exemplo 6 | AD2: =E6 -> climatizado pressão positiva | AE2: =E8 -> 1200 | AF2: =E9 -> Chapecó, SC | AG2: =E11 -> 42278 | AI2: =B4 -> 12500 | AK2: =B6 -> 2.4 | AM2: =B7 -> 43 | AN2: =B8 -> 16 | AO2: =B9 -> 28 | AP2: =B10 -> 12 | AQ2: =B12 -> 5.983050847 | AR2: =B11 -> 1.85 | AU2: =B5 -> 0.984 | AV2: =B15 -> 141000 | AW2: =B16 -> 130000 | AX2: =B17 -> 5000 | AY2: =C15 -> 12 | AZ2: =C16 -> 25 | BA2: =E15 -> 0.02 | BB2: =G22 -> 25000 | BC2: =H24 -> 10500 | BD2: =H25 -> 0 | BE2: =H26 -> 3273.626271 | BF2: =H27 -> 9118.169492 | BG2: =H28 -> 2393.220339 | BI2: =H29 -> 200 | BJ2: =H30 -> 800 | BK2: =H31 -> 2094.067797 | BL2: =H32 -> 2991.525424 | BM2: =H33 -> 300 | BN2: =H34 -> 0 | BO2: =H35 -> 15255 | BP2: =H37 -> 43690.81 | BQ2: =H38 -> 2941.666667 | BR2: =B41 -> 0.2624 | BS2: =B42 -> 0.1782 | BT2: =B43 -> 0.0858 | BU2: =B44 -> 0.264 | BV2: =B45 -> 0.0281 | BW2: =B46 -> 0.2921 | BX2: =B49 -> 0.0842 | BY2: =B50 -> -0.0016 | BZ2: =B51 -> -0.0297 | CA2: =B52 -> 0.0026 | CB2: =Q1 -> -0.2653472941
A3: Alojamento e desempenho | B3: Índices técnicos | D3: Caracterização | K3: 1 | L3: =IF($K3/$C$16=INT($K3/$C$16),-$B$16,0)*IF(MAX($C$15:$C$16)-$K3<$C$16,0,1) -> 0 | M3: =IF($K3/$C$15=INT($K3/$C$15),-$B$15,0)*IF(MAX($C$15:$C$16)-$K3<$C$15,0,1) -> 0 | N3: =IF($K3=MAX($C$15:$C$16),$B$17+$F$13*$B$15+$F$14*$B$16,0) -> 0 | O3: =$E$41-$E$42 -> 14961.86734 | P3: 14961.86734
A4: Alojamento inicial (cabeças/lote) | B4: 12500 | D4: Identificação da granja: | E4: Exemplo 6 | G4: Sistema de Criação | K4: 2 | L4: 0 | M4: 0 | N4: 0 | O4: 14961.86734 | P4: 14961.86734
A5: Mortalidade (%) | B5: 0.984 | G5: convencional | K5: 3 | L5: 0 | M5: 0 | N5: 0 | O5: 14961.86734 | P5: =IF($K5>MAX($C$15:$C$16),0,SUM(L5:O5)) -> 14961.86734
A6: Peso médio de venda (kg vivo/cabeça) | B6: 2.4 | D6: Sistema de criação: | E6: climatizado pressão positiva | G6: climatizado pressão positiva | K6: 4 | L6: 0 | M6: 0 | N6: 0 | O6: 14961.86734 | P6: 14961.86734
A7: Duração do lote (dias) | B7: 43 | G7: climatizado pressão negativa | K7: 5 | L7: 0 | M7: 0 | N7: 0 | O7: 14961.86734 | P7: 14961.86734
A8: Vazio sanitário (dias/lote) | B8: 16 | D8: Área: | E8: 1200 | G8: dark house | K8: 6 | L8: 0 | M8: 0 | N8: 0 | O8: 14961.86734 | P8: 14961.86734
A9: Vazio sanitário na troca de cama (dias) | B9: 28 | D9: Município e UF: | E9: Chapecó, SC | K9: 7 | L9: 0 | M9: 0 | N9: 0 | O9: 14961.86734 | P9: 14961.86734
A10: Número de lotes para troca de cama | B10: 12 | K10: 8 | L10: 0 | M10: 0 | N10: 0 | O10: 14961.86734 | P10: 14961.86734
A11: Conversão alimentar | B11: 1.85 | D11: Data entrega lote: | E11: 2015-10-01 | K11: 9 | L11: 0 | M11: 0 | N11: 0 | O11: 14961.86734 | P11: 14961.86734
A12: Número de lotes por ano | B12: =IF((B8+B9)=0,,(365-(B9-B8))/(B7+B8)) -> 5.983050847 | F12: Valor residual (%) | G12: Depreciação (R$/ano) | H12: Custo de capital (R$/ano) | K12: 10 | L12: 0 | M12: 0 | N12: 0 | O12: 14961.86734 | P12: 14961.86734
F13: 0.1 | G13: =IF(C15<=0,"",(B15*(1-F13))/C15) -> 10575 | H13: =-PMT($E$15,C15,B15,,0)-G13 -> 2757.903124 | K13: 11 | L13: 0 | M13: 0 | N13: 0 | O13: 14961.86734 | P13: 14961.86734
A14: Investimento realizado | B14: Valor novo ou atualizado (R$) | C14: Vida útil (anos) | E14: Juros sobre capital | F14: 0.1 | G14: =IF(C16<=0,"",(B16*(1-F14))/C16) -> 4680 | H14: =-PMT($E$15,C16,B16,,0)-G14 -> 1978.656994 | K14: 12 | L14: 0 | M14: -141000 | N14: 0 | O14: 14961.86734 | P14: -126038.1327
A15: Equipamentos | B15: 141000 | C15: 12 | E15: 0.02 | F15: 1 | G15: =IF(C16<=0,"",(B17*(1-F15))/C16) -> 0 | H15: =-PMT($E$15,C16,B17,,0)-G15 -> 256.1021921 | K15: 13 | L15: 0 | M15: 0 | N15: 0 | O15: 14961.86734 | P15: 14961.86734
A16: Instalações | B16: 130000 | C16: 25 | G16: =SUM(G13:G15) -> 15255 | H16: =SUM(H13:H15) -> 4992.66231 | K16: 14 | L16: 0 | M16: 0 | N16: 0 | O16: 14961.86734 | P16: 14961.86734
A17: Terreno ocupado pelas instalações | B17: 5000 | H17: Unidades | K17: 15 | L17: 0 | M17: 0 | N17: 0 | O17: 14961.86734 | P17: 14961.86734
A18: Total | B18: =SUM(B15:B17) -> 276000 | G18: Financiamento | H18: R$/cab | I18: =+B12*B4*(1-B5/100) -> 74052.22034 | K18: 16 | L18: 0 | M18: 0 | N18: 0 | O18: 14961.86734 | P18: 14961.86734
F19: Anual | G19: 1 | H19: R$/lote | I19: =+B12 -> 5.983050847 | K19: 17 | L19: 0 | M19: 0 | N19: 0 | O19: 14961.86734 | P19: 14961.86734
A20: Financiamento | B20: Unidade | C20: Valores | F20: Trimestral | G20: 4 | H20: R$/mês | I20: 12 | K20: 18 | L20: 0 | M20: 0 | N20: 0 | O20: 14961.86734 | P20: 14961.86734
A21: Valor da prestação do financiamento | B21: Anual | C21: 25000 | F21: Semestral | G21: 2 | H21: R$/ano | I21: 1 | K21: 19 | L21: 0 | M21: 0 | N21: 0 | O21: 14961.86734 | P21: 14961.86734
G22: =+VLOOKUP(B21,F19:G21,2,FALSE)*C21 -> 25000 | H22: R$/troca | I22: =+B12/B10 -> 0.4985875706 | K22: 20 | L22: 0 | M22: 0 | N22: 0 | O22: 14961.86734 | P22: 14961.86734
A23: Itens de despesa | B23: Unidade | C23: Valores | G23: Itens de despesas | H23: R$/ano | K23: 21 | L23: 0 | M23: 0 | N23: 0 | O23: 14961.86734 | P23: 14961.86734
A24: Mão de obra familiar | B24: R$/ano | C24: 10500 | G24: Mão de obra familiar | H24: =+C24*VLOOKUP(B24,$H$18:$I$22,2,FALSE) -> 10500 | I24: Mão de obra familiar | J24: =H24 -> 10500 | K24: 22 | L24: 0 | M24: 0 | N24: 0 | O24: 14961.86734 | P24: 14961.86734
A25: Mão de obra contratada e encargos sociais | B25: R$/mês | C25: 0 | G25: Mão de obra contratada | H25: 0 | I25: Mão de obra contratada | J25: =SUM(H25:H26) -> 3273.626271 | K25: 23 | L25: 0 | M25: 0 | N25: 0 | O25: 14961.86734 | P25: 14961.86734
A26: Diaristas e prestadores de serviços | B26: R$/lote | C26: 547.15 | G26: Diaristas e serviços | H26: 3273.626271 | I26: Outros custos variáveis | J26: =+SUM(H27:H34) -> 17896.98305 | K26: 24 | L26: 0 | M26: 0 | N26: 0 | O26: 14961.86734 | P26: 14961.86734
A27: Energia e aquecimento | B27: R$/lote | C27: 1524 | G27: Energia e aquecimento | H27: 9118.169492 | I27: Depreciação | J27: =+H35 -> 15255 | K27: 25 | L27: 0 | M27: 0 | N27: 32100 | O27: 14961.86734 | P27: 47061.86734
A28: Substrato para cama | B28: R$/troca | C28: 4800 | G28: Substrato para cama | H28: 2393.220339 | I28: Custo de capital | J28: =E45 -> 4992.66231 | K28: 26 | L28: 0 | M28: 0 | N28: 0 | O28: 14961.86734 | P28: 0
A29: Licença ambiental | B29: R$/ano | C29: 200 | G29: Licença ambiental | H29: 200 | K29: 27 | L29: 0 | M29: 0 | N29: 0 | O29: 14961.86734 | P29: 0
A30: Seguro | B30: R$/ano | C30: 800 | G30: Seguro | H30: 800 | K30: 28 | L30: 0 | M30: 0 | N30: 0 | O30: 14961.86734 | P30: 0
A31: Manutenção | B31: R$/lote | C31: 350 | G31: Manutenção | H31: 2094.067797 | K31: 29 | L31: 0 | M31: 0 | N31: 0 | O31: 14961.86734 | P31: 0
A32: Insumos para limpeza, desinfecção e medicamentos | B32: R$/lote | C32: 500 | G32: Desinfetantes e medicamentos | H32: 2991.525424 | K32: 30 | L32: 0 | M32: 0 | N32: 0 | O32: 14961.86734 | P32: 0
A33: Despesas administrativas | B33: R$/ano | C33: 300 | G33: Despesas administrativas | H33: 300 | K33: 31 | L33: 0 | M33: 0 | N33: 0 | O33: 14961.86734 | P33: 0
A34: Outros | B34: R$/mês | C34: 0 | G34: Outros | H34: 0 | K34: 32 | L34: 0 | M34: 0 | N34: 0 | O34: 14961.86734 | P34: 0
G35: Depreciação | H35: =G16 -> 15255 | K35: 33 | L35: 0 | M35: 0 | N35: =IF($K35=MAX($C$15:$C$16),$B$17+$F$13*$B$15+$F$14*$B$16,0) -> 0 | O35: 14961.86734 | P35: 0
A36: Itens de receita | B36: Unidade | C36: Valores | K36: 34 | L36: 0 | M36: 0 | N36: 0 | O36: 14961.86734 | P36: 0
A37: Receita com a venda dos frangos | B37: R$/cab | C37: 0.59 | G37: Receita com a venda dos frangos | H37: =+C37*VLOOKUP(B37,$H$18:$I$22,2,FALSE) -> 43690.81 | K37: 35 | L37: 0 | M37: 0 | N37: 0 | O37: 14961.86734 | P37: 0
A38: Receita com a venda da cama de aviário | B38: R$/troca | C38: 5900 | G38: Receita com a venda da cama de aviário | H38: =+C38*VLOOKUP(B38,$H$18:$I$22,2,FALSE) -> 2941.666667 | K38: 36 | L38: 0 | M38: 0 | N38: 0 | O38: 14961.86734 | P38: 0
K39: 37 | L39: 0 | M39: 0 | N39: 0 | O39: 14961.86734 | P39: 0
A40: Receita bruta e custos | B40: R$/kg vivo | C40: R$/cabeça | D40: R$/lote | E40: R$/ano | K40: 38 | L40: 0 | M40: 0 | N40: 0 | O40: 14961.86734 | P40: 0
A41: A - Receita bruta | B41: =ROUND(C41/$B$6,4) -> 0.2624 | C41: =D41/($B$4*(1-$B$5/100)) -> 0.6297242197 | D41: =E41/$B$12 -> 7794.096667 | E41: =SUM(H37:H38) -> 46632.47667 | K41: 39 | L41: 0 | M41: 0 | N41: 0 | O41: 14961.86734 | P41: 0
A42: B - Custos variáveis | B42: =ROUND(C42/$B$6,4) -> 0.1782 | C42: =ROUND(D42/($B$4*(1-$B$5/100)),4) -> 0.4277 | D42: =E42/$B$12 -> 5293.38796 | E42: =SUM(H24:H34) -> 31670.60932 | K42: 40 | L42: 0 | M42: 0 | N42: 0 | O42: 14961.86734 | P42: 0
A43: C - Depreciação | B43: 0.0858 | C43: =ROUND(D43/($B$4*(1-$B$5/100)),4) -> 0.206 | D43: =E43/$B$12 -> 2549.70255 | E43: =G16 -> 15255 | K43: 41 | L43: 0 | M43: 0 | N43: 0 | O43: 14961.86734 | P43: 0
A44: D - Custo operacional (B+C) | B44: =SUM(B42:B43) -> 0.264 | C44: =SUM(C42:C43) -> 0.6337 | D44: =SUM(D42:D43) -> 7843.09051 | E44: =SUM(E42:E43) -> 46925.60932 | K44: 42 | L44: 0 | M44: 0 | N44: 0 | O44: 14961.86734 | P44: 0
A45: ="E - Custo de capital ou retorno esperado de "&E15*100&"% ao ano" -> E - Custo de capital ou retorno esperado de 2% ao ano | B45: 0.0281 | C45: =D45/($B$4*(1-$B$5/100)) -> 0.06742083205 | D45: =E45/$B$12 -> 834.4676382 | E45: =IF(E15<=0,0,H16) -> 4992.66231 | K45: 43 | L45: 0 | M45: 0 | N45: 0 | O45: 14961.86734 | P45: 0
A46: F - Custo total (B+C+E) | B46: =SUM(B44:B45) -> 0.2921 | C46: =SUM(C44:C45) -> 0.701120832 | D46: =SUM(D44:D45) -> 8677.558148 | E46: =SUM(E44:E45) -> 51918.27163 | K46: 44 | L46: 0 | M46: 0 | N46: 0 | O46: 14961.86734 | P46: 0
K47: 45 | L47: 0 | M47: 0 | N47: 0 | O47: 14961.86734 | P47: 0
A48: Resultados | B48: R$/kg vivo | C48: R$/cabeça | D48: R$/lote | E48: R$/ano | K48: 46 | L48: 0 | M48: 0 | N48: 0 | O48: 14961.86734 | P48: 0
A49: G - Margem bruta: (Receita bruta - Custo variável) | B49: =+B41-B42 -> 0.0842 | C49: =+C41-C42 -> 0.2020242197 | D49: =+D41-D42 -> 2500.708706 | E49: =+E41-E42 -> 14961.86734 | K49: 47 | L49: 0 | M49: 0 | N49: 0 | O49: 14961.86734 | P49: 0
A50: H - Margem líquida: (Receita bruta - Custo operacional) | B50: =+B41-B44 -> -0.0016 | C50: =+C41-C44 -> -0.003975780345 | D50: -48.99384325 | E50: -293.1326554 | K50: 48 | L50: 0 | M50: 0 | N50: 0 | O50: 14961.86734 | P50: 0
A51: I - Lucro líquido: (Receita bruta - Custo total) | B51: =+B41-B46 -> -0.0297 | C51: =+C41-C46 -> -0.07139661239 | D51: =+D41-D46 -> -883.4614815 | E51: =+E41-E46 -> -5285.794966 | K51: 49 | L51: 0 | M51: 0 | N51: 0 | O51: 14961.86734 | P51: 0
A52: J - Geração de caixa (Entradas de caixa - Saídas de Caixa) | B52: =ROUND(C52/$B$6,4) -> 0.0026 | C52: =ROUND(D52/($B$4*(1-$B$5/100)),4) -> 0.0062 | D52: =E52/$B$12 -> 77.19595845 | E52: =E41-(E42-H24+G22) -> 461.8673446 | K52: 50 | L52: 0 | M52: 0 | N52: 0 | O52: 14961.86734 | P52: 0
G53: Matriz da Análise financeira | K53: 51 | L53: 0 | M53: 0 | N53: 0 | O53: 14961.86734 | P53: 0
A54: Composição do custo total | C54: Análise do resultado | G54: =IF(AND(E52<0,E41<E44),"Pior resultado possível! A receita bruta não cobre o custo operacional e a geração de caixa é negativa.","") ->  | H54: =IF(AND(E52>0,E41<E44),"Resultado ruim, mas honrando os compromissos financeiros. A receita bruta não cobre o custo operacional, mas a geração de caixa é positiva.","") -> Resultado ruim, mas honrando os compromissos financeiros. A receita bruta não cobre o custo operacional, mas a geração de caixa é positiva. | K54: 52 | L54: 0 | M54: 0 | N54: 0 | O54: 14961.86734 | P54: 0
K55: 53 | L55: 0 | M55: 0 | N55: 0 | O55: 14961.86734 | P55: 0
C56: =G54&H54&G58&H58&G65&H65 -> Resultado ruim, mas honrando os compromissos financeiros. A receita bruta não cobre o custo operacional, mas a geração de caixa é positiva. | K56: 54 | L56: 0 | M56: 0 | N56: 0 | O56: 14961.86734 | P56: 0
K57: 55 | L57: 0 | M57: 0 | N57: 0 | O57: 14961.86734 | P57: 0
G58: =IF(AND(E52<0,E41>=E44,E41<E46),"Resultado abaixo do esperado e com problemas para honrar os compromissos financeiros. A receita bruta cobre o custo operacional, mas não atende a expectativa de retorno sobre o investimento de "&$E$15*100&"% ao ano. Além disso, a geração de caixa é negativa.","") ->  | H58: =IF(AND(E52>=0,E41>=E44,E41<E46),"Resultado abaixo do esperado, mas honrando os compromissos financeiros. A receita bruta cobre o custo operacional, mas não atende a expectativa de retorno sobre o investimento de "&$E$15*100&"% ao ano. Entretanto, a geração de caixa é positiva.","") ->  | K58: 56 | L58: 0 | M58: 0 | N58: 0 | O58: 14961.86734 | P58: 0
K59: 57 | L59: 0 | M59: 0 | N59: 0 | O59: 14961.86734 | P59: 0
K60: 58 | L60: 0 | M60: 0 | N60: 0 | O60: 14961.86734 | P60: 0
K61: 59 | L61: 0 | M61: 0 | N61: 0 | O61: 14961.86734 | P61: 0
K62: 60 | L62: 0 | M62: 0 | N62: 0 | O62: 14961.86734 | P62: 0
K63: 61 | L63: 0 | M63: 0 | N63: 0 | O63: 14961.86734 | P63: 0
K64: 62 | L64: 0 | M64: 0 | N64: 0 | O64: 14961.86734 | P64: 0
G65: =IF(AND(E52<0,E41>=E46),"Resultado acima do esperado mas com problemas para honrar os compromissos financeiros. A receita bruta atende a expectativa de retorno sobre o investimento de "&$E$15*100&"% ao ano. Entretanto, a geração de caixa é negativa.","") ->  | H65: =IF(AND(E52>=0,E41>=E46),"Melhor resultado possível! A receita bruta atende a expectativa de retorno sobre o investimento de "&$E$15*100&"% ao ano e a geração de caixa é positiva.","") ->  | K65: 63 | L65: 0 | M65: 0 | N65: 0 | O65: 14961.86734 | P65: 0
K66: 64 | L66: 0 | M66: 0 | N66: 0 | O66: 14961.86734 | P66: 0
K67: 65 | L67: =IF($K67/$C$16=INT($K67/$C$16),-$B$16,0)*IF(MAX($C$15:$C$16)-$K67<$C$16,0,1) -> 0 | M67: =IF($K67/$C$15=INT($K67/$C$15),-$B$15,0)*IF(MAX($C$15:$C$16)-$K67<$C$15,0,1) -> 0 | N67: =IF($K67=MAX($C$15:$C$16),$B$17+$F$13*$B$15+$F$14*$B$16,0) -> 0 | O67: =$E$41-$E$42 -> 14961.86734 | P67: 0
K68: 66 | L68: 0 | M68: 0 | N68: 0 | O68: 14961.86734 | P68: 0
C69: =IF(P3<0,"","A Taxa Interna de Retorno (TIR) do investimento foi estimada em "&TRUNC(Q1,1)&"% ao ano.") -> A Taxa Interna de Retorno (TIR) do investimento foi estimada em -0,2% ao ano. | K69: 67 | L69: 0 | M69: 0 | N69: 0 | O69: 14961.86734 | P69: =IF($K69>MAX($C$15:$C$16),0,SUM(L69:O69)) -> 0
K70: 68 | L70: 0 | M70: 0 | N70: 0 | O70: 14961.86734 | P70: 0
K71: 69 | L71: 0 | M71: 0 | N71: 0 | O71: 14961.86734 | P71: 0
K72: 70 | L72: 0 | M72: 0 | N72: 0 | O72: 14961.86734 | P72: 0
K73: 71 | L73: 0 | M73: 0 | N73: 0 | O73: 14961.86734 | P73: 0
K74: 72 | L74: 0 | M74: 0 | N74: 0 | O74: 14961.86734 | P74: 0
K75: 73 | L75: 0 | M75: 0 | N75: 0 | O75: 14961.86734 | P75: 0
K76: 74 | L76: 0 | M76: 0 | N76: 0 | O76: 14961.86734 | P76: 0
A77: Mão de obra familiar | B77: =+J24 -> 10500 | K77: 75 | L77: 0 | M77: 0 | N77: 0 | O77: 14961.86734 | P77: 0
A78: Mão de obra contratada | B78: =+J25 -> 3273.626271 | K78: 76 | L78: 0 | M78: 0 | N78: 0 | O78: 14961.86734 | P78: 0
A79: Outros custos variáveis | B79: 17896.98305 | K79: 77 | L79: 0 | M79: 0 | N79: 0 | O79: 14961.86734 | P79: 0
A80: Depreciação | B80: 15255 | K80: 78 | L80: 0 | M80: 0 | N80: 0 | O80: 14961.86734 | P80: 0
A81: Custo de capital | B81: 4992.66231 | K81: 79 | L81: 0 | M81: 0 | N81: 0 | O81: 14961.86734 | P81: 0
K82: 80 | L82: 0 | M82: 0 | N82: 0 | O82: 14961.86734 | P82: 0
K83: 81 | L83: 0 | M83: 0 | N83: 0 | O83: 14961.86734 | P83: 0
K84: 82 | L84: 0 | M84: 0 | N84: 0 | O84: 14961.86734 | P84: 0
K85: 83 | L85: 0 | M85: 0 | N85: 0 | O85: 14961.86734 | P85: 0
K86: 84 | L86: 0 | M86: 0 | N86: 0 | O86: 14961.86734 | P86: 0
K87: 85 | L87: 0 | M87: 0 | N87: 0 | O87: 14961.86734 | P87: 0
K88: 86 | L88: 0 | M88: 0 | N88: 0 | O88: 14961.86734 | P88: 0
K89: 87 | L89: 0 | M89: 0 | N89: 0 | O89: 14961.86734 | P89: 0
K90: 88 | L90: 0 | M90: 0 | N90: 0 | O90: 14961.86734 | P90: 0
K91: 89 | L91: 0 | M91: 0 | N91: 0 | O91: 14961.86734 | P91: 0
K92: 90 | L92: 0 | M92: 0 | N92: 0 | O92: 14961.86734 | P92: 0
K93: 91 | L93: 0 | M93: 0 | N93: 0 | O93: 14961.86734 | P93: 0
K94: 92 | L94: 0 | M94: 0 | N94: 0 | O94: 14961.86734 | P94: 0
K95: 93 | L95: 0 | M95: 0 | N95: 0 | O95: 14961.86734 | P95: 0
K96: 94 | L96: 0 | M96: 0 | N96: 0 | O96: 14961.86734 | P96: 0
K97: 95 | L97: 0 | M97: 0 | N97: 0 | O97: 14961.86734 | P97: 0
K98: 96 | L98: 0 | M98: 0 | N98: 0 | O98: 14961.86734 | P98: 0
K99: 97 | L99: 0 | M99: 0 | N99: 0 | O99: 14961.86734 | P99: 0
K100: 98 | L100: 0 | M100: 0 | N100: 0 | O100: 14961.86734 | P100: 0
K101: 99 | L101: 0 | M101: 0 | N101: 0 | O101: 14961.86734 | P101: =IF($K101>MAX($C$15:$C$16),0,SUM(L101:O101)) -> 0
K102: 100 | L102: 0 | M102: 0 | N102: 0 | O102: 14961.86734 | P102: 0
L103: x | M103: x | N103: x | O103: x | P103: x

Sheet Lista de variáveis BD
A1: N.º da variável | B1: UPD | C1: UPL | D1: UC | E1: UT | F1: WTF | G1: Frango | H1: =SUM(H2:H53) -> 1 | I1: =SUM(I2:I53) -> 10 | J1: =SUM(J2:J53) -> 0 | K1: =SUM(K2:K53) -> 0 | L1: =SUM(L2:L53) -> 5
A2: A1 | B2: Identificação da granja | C2: Identificação da granja | D2: Identificação da granja | E2: Identificação da granja | F2: Identificação da granja | G2: Identificação da granja | H2: =IF(B2=C2,"",1) ->  | I2: =IF(C2=D2,"",1) ->  | J2: =IF(D2=E2,"",1) ->  | K2: =IF(E2=F2,"",1) ->  | L2: =IF(F2=G2,"",1) -> 
A3: A2 | B3: Sistema de criação | C3: Sistema de criação | D3: Sistema de criação | E3: Sistema de criação | F3: Sistema de criação | G3: Sistema de criação | H3: =IF(B3=C3,"",1) ->  | J3: =IF(D3=E3,"",1) -> 
A4: A3 | G4: Área | L4: 1
A5: A4 | B5: Município e UF | C5: Município e UF | D5: Município e UF | E5: Município e UF | F5: Município e UF | G5: Município e UF
A6: A5 | B6: Data entrega do lote | C6: Data entrega do lote | D6: Data entrega do lote | E6: Data entrega do lote | F6: Data entrega do lote | G6: Data entrega do lote
A7: A6 | B7: Média de matrizes ativas (cabeças) | C7: Média de matrizes ativas (cabeças) | I7: 1
A8: A7 | D8: Alojamento inicial (cabeças/lote) | E8: Alojamento inicial (cabeças/lote) | F8: Alojamento inicial (cabeças/lote) | G8: Alojamento inicial (cabeças/lote) | H8: =IF(B8=C8,"",1) ->  | I8: =IF(C8=D8,"",1) -> 1 | J8: =IF(D8=E8,"",1) ->  | K8: =IF(E8=F8,"",1) ->  | L8: =IF(F8=G8,"",1) -> 
A9: A8 | B9: Vendidos/matriz/ano | C9: Vendidos/matriz/ano | I9: =IF(C9=D9,"",1) -> 1
A10: A9 | B10: Peso médio de venda (kg vivo/cabeça) | C10: Peso médio de venda (kg vivo/cabeça) | D10: Peso médio de venda (kg vivo/cabeça) | E10: Peso médio de venda (kg vivo/cabeça) | F10: Peso médio de venda (kg vivo/cabeça) | G10: Peso médio de venda (kg vivo/cabeça) | I10: =IF(C10=D10,"",1) -> 
A11: A10 | B11: Programação dos lotes | C11: Programação dos lotes | H11: =IF(B11=C11,"",1) ->  | I11: 1
A12: A11 | D12: Duração do lote (dias) | E12: Duração do lote (dias) | F12: Duração do lote (dias) | G12: Duração do lote (dias) | I12: 1
A13: A12 | D13: Vazio sanitário (dias/lote) | E13: Vazio sanitário (dias/lote) | F13: Vazio sanitário (dias/lote) | G13: Vazio sanitário (dias/lote) | I13: 1
A14: A13 | G14: Vazio sanitário troca de cama (dias/lote) | L14: 1
A15: A14 | G15: Número de lotes para troca de cama | L15: 1
A16: A15 | B16: Número de lotes por ano | C16: Número de lotes por ano | D16: Número de lotes por ano | E16: Número de lotes por ano | F16: Número de lotes por ano | G16: Número de lotes por ano
A17: A16 | C17: Conversão alimentar na creche | D17: Conversão alimentar | E17: Conversão alimentar | F17: Conversão alimentar | G17: Conversão alimentar | H17: 1 | I17: 1
A18: A17 | B18: Consumo dos reprodutores (kg/matriz/ano) | C18: Consumo dos reprodutores (kg/matriz/ano) | I18: 1
A19: A18 | B19: Mortalidade de matrizes (%) | C19: Mortalidade de matrizes (%) | I19: 1
A20: A19 | D20: Mortalidade (%) | E20: Mortalidade (%) | F20: Mortalidade (%) | G20: Mortalidade (%) | I20: 1
A21: B1 | B21: Equipamentos (R$) | C21: Equipamentos (R$) | D21: Equipamentos (R$) | E21: Equipamentos (R$) | F21: Equipamentos (R$) | G21: Equipamentos (R$)
A22: B2 | B22: Instalações (R$) | C22: Instalações (R$) | D22: Instalações (R$) | E22: Instalações (R$) | F22: Instalações (R$) | G22: Instalações (R$)
A23: B3 | B23: Terreno ocupado pelas instalações (R$) | C23: Terreno ocupado pelas instalações (R$) | D23: Terreno ocupado pelas instalações (R$) | E23: Terreno ocupado pelas instalações (R$) | F23: Terreno ocupado pelas instalações (R$) | G23: Terreno ocupado pelas instalações (R$)
A24: B4 | B24: Equipamentos (anos) | C24: Equipamentos (anos) | D24: Equipamentos (anos) | E24: Equipamentos (anos) | F24: Equipamentos (anos) | G24: Equipamentos (anos)
A25: B5 | B25: Instalações (anos) | C25: Instalações (anos) | D25: Instalações (anos) | E25: Instalações (anos) | F25: Instalações (anos) | G25: Instalações (anos)
A26: B6 | B26: Juros sobre capital | C26: Juros sobre capital | D26: Juros sobre capital | E26: Juros sobre capital | F26: Juros sobre capital | G26: Juros sobre capital
A27: B7 | B27: Valor da prestação do financiamento | C27: Valor da prestação do financiamento | D27: Valor da prestação do financiamento | E27: Valor da prestação do financiamento | F27: Valor da prestação do financiamento | G27: Valor da prestação do financiamento
A28: C1 | B28: Mão de obra familiar | C28: Mão de obra familiar | D28: Mão de obra familiar | E28: Mão de obra familiar | F28: Mão de obra familiar | G28: Mão de obra familiar
A29: C2 | B29: Mão de obra contratada e encargos sociais | C29: Mão de obra contratada e encargos sociais | D29: Mão de obra contratada e encargos sociais | E29: Mão de obra contratada e encargos sociais | F29: Mão de obra contratada e encargos sociais | G29: Mão de obra contratada e encargos sociais
A30: C3 | B30: Diaristas e prestadores de serviços | C30: Diaristas e prestadores de serviços | D30: Diaristas e prestadores de serviços | E30: Diaristas e prestadores de serviços | F30: Diaristas e prestadores de serviços | G30: Diaristas e prestadores de serviços
A31: C4 | B31: Energia e aquecimento | C31: Energia e aquecimento | D31: Energia e aquecimento | E31: Energia e aquecimento | F31: Energia e aquecimento | G31: Energia e aquecimento
A32: C5 | G32: Substrato para cama | L32: 1
A33: C6 | B33: Tratamento, transporte e aplicação de dejetos | C33: Tratamento, transporte e aplicação de dejetos | D33: Tratamento, transporte e aplicação de dejetos | E33: Tratamento, transporte e aplicação de dejetos | F33: Tratamento, transporte e aplicação de dejetos | L33: 1
A34: C7 | B34: Licença ambiental | C34: Licença ambiental | D34: Licença ambiental | E34: Licença ambiental | F34: Licença ambiental | G34: Licença ambiental
A35: C8 | B35: Seguro | C35: Seguro | D35: Seguro | E35: Seguro | F35: Seguro | G35: Seguro
A36: C9 | B36: Manutenção | C36: Manutenção | D36: Manutenção | E36: Manutenção | F36: Manutenção | G36: Manutenção
A37: C10 | B37: Insumos para limpeza, desinfecção, vacinas e medicamentos | C37: Insumos para limpeza, desinfecção, vacinas e medicamentos | D37: Insumos para limpeza, desinfecção, vacinas e medicamentos | E37: Insumos para limpeza, desinfecção, vacinas e medicamentos | F37: Insumos para limpeza, desinfecção, vacinas e medicamentos | G37: Insumos para limpeza, desinfecção, vacinas e medicamentos
A38: C11 | B38: Despesas administrativas | C38: Despesas administrativas | D38: Despesas administrativas | E38: Despesas administrativas | F38: Despesas administrativas | G38: Despesas administrativas
A39: C12 | B39: Outros | C39: Outros | D39: Outros | E39: Outros | F39: Outros | G39: Outros
A40: C13 | B40: Depreciação | C40: Depreciação | D40: Depreciação | E40: Depreciação | F40: Depreciação | G40: Depreciação
A41: C14 | B41: Receita com a venda dos leitões | C41: Receita com a venda dos leitões | D41: Receita com a venda dos leitões | E41: Receita com a venda dos leitões | F41: Receita com a venda dos leitões | G41: Receita com a venda dos leitões
A42: C15 | B42: Receita com a venda de dejeto ou composto | C42: Receita com a venda de dejeto ou composto | D42: Receita com a venda de dejeto ou composto | E42: Receita com a venda de dejeto ou composto | F42: Receita com a venda de dejeto ou composto | G42: Receita com a venda de dejeto ou composto
A43: D1 | B43: A - Receita bruta | C43: A - Receita bruta | D43: A - Receita bruta | E43: A - Receita bruta | F43: A - Receita bruta | G43: A - Receita bruta
A44: D2 | B44: B - Custos variáveis | C44: B - Custos variáveis | D44: B - Custos variáveis | E44: B - Custos variáveis | F44: B - Custos variáveis | G44: B - Custos variáveis
A45: D3 | B45: C - Depreciação | C45: C - Depreciação | D45: C - Depreciação | E45: C - Depreciação | F45: C - Depreciação | G45: C - Depreciação
A46: D4 | B46: D - Custo operacional (B+C) | C46: D - Custo operacional (B+C) | D46: D - Custo operacional (B+C) | E46: D - Custo operacional (B+C) | F46: D - Custo operacional (B+C) | G46: D - Custo operacional (B+C)
A47: D5 | B47: E - Custo de capital ou retorno esperado de 5,8% ao ano | C47: E - Custo de capital ou retorno esperado de 5,8% ao ano | D47: E - Custo de capital ou retorno esperado de 5,8% ao ano | E47: E - Custo de capital ou retorno esperado de 5,8% ao ano | F47: E - Custo de capital ou retorno esperado de 5,8% ao ano | G47: E - Custo de capital ou retorno esperado de 5,8% ao ano
A48: D6 | B48: F - Custo total (B+C+E) | C48: F - Custo total (B+C+E) | D48: F - Custo total (B+C+E) | E48: F - Custo total (B+C+E) | F48: F - Custo total (B+C+E) | G48: F - Custo total (B+C+E)
A49: D7 | B49: G - Margem bruta (Receita bruta - Custo variável) | C49: G - Margem bruta (Receita bruta - Custo variável) | D49: G - Margem bruta (Receita bruta - Custo variável) | E49: G - Margem bruta (Receita bruta - Custo variável) | F49: G - Margem bruta (Receita bruta - Custo variável) | G49: G - Margem bruta (Receita bruta - Custo variável)
A50: D8 | B50: H - Margem líquida (Receita bruta - Custo operacional) | C50: H - Margem líquida (Receita bruta - Custo operacional) | D50: H - Margem líquida (Receita bruta - Custo operacional) | E50: H - Margem líquida (Receita bruta - Custo operacional) | F50: H - Margem líquida (Receita bruta - Custo operacional) | G50: H - Margem líquida (Receita bruta - Custo operacional)
A51: D9 | B51: I - Lucro líquido (Receita bruta - Custo total) | C51: I - Lucro líquido (Receita bruta - Custo total) | D51: I - Lucro líquido (Receita bruta - Custo total) | E51: I - Lucro líquido (Receita bruta - Custo total) | F51: I - Lucro líquido (Receita bruta - Custo total) | G51: I - Lucro líquido (Receita bruta - Custo total)
A52: D10 | B52: J - Geração de caixa (Entradas de caixa - Saídas de Caixa) | C52: J - Geração de caixa (Entradas de caixa - Saídas de Caixa) | D52: J - Geração de caixa (Entradas de caixa - Saídas de Caixa) | E52: J - Geração de caixa (Entradas de caixa - Saídas de Caixa) | F52: J - Geração de caixa (Entradas de caixa - Saídas de Caixa) | G52: J - Geração de caixa (Entradas de caixa - Saídas de Caixa)
A53: D11 | B53: TIR | C53: TIR | D53: TIR | E53: TIR | F53: TIR | G53: TIR
